{"text_format":"2","workbook":"xlsx","n_sheets":49,"sheets":["modProv","Инструкция","Лог обновления","Титульный","Территории","Дифференциация","Форма 1.0.1","Форма 2.10","Сведения об изменении","Форма 1.0.2","Комментарии","Проверка","modReestr","AllSheetsInThisWorkbook","TEHSHEET","modCheckCyan","modInfo","et_union_hor","et_union_vert","modList00","modList01","modList02","modList03","modList04","modList07","modList09","modHTTP","modfrmRegion","MR_LIST","REESTR_VT","REESTR_VED","modfrmReestrObj","DataOrg","modfrmReestr","modUpdTemplMain","REESTR_ORG","modClassifierValidate","modHyp","modfrmDateChoose","modComm","modThisWorkbook","REESTR_MO","REESTR_MO_FILTER","modfrmReestrMR","modServiceModule","modfrmCheckUpdates","REESTR_DS","REESTR_CHS","REESTR_LINK"],"not_rendered":{"charts":0,"images":22,"macros":0,"external_links":0,"defined_names":173,"comments":3,"pivot_tables":0},"unopened":[],"bounds":{"document_bytes":16777216,"sheet_cells":100000,"run_cost":"one","rows_first":2000,"rows_last":500,"rows_between":2000,"halvings":0,"cell_chars":16384,"cell_head_chars":4096},"cells_cut":0,"cells_raw":0,"read":"whole","date_system":"1900"}

{"sheet":"modProv","index":0,"n_rows":0,"n_cols":0,"rows_kept":0,"cut":false,"hidden":true,"merged":[]}

{"sheet":"Инструкция","index":1,"n_rows":83,"n_cols":27,"rows_kept":83,"cut":false,"hidden":false,"merged":[[34,4,38,23],[22,15,22,22],[21,5,21,12],[1,1,1,6],[2,1,2,2],[4,1,4,24],[6,4,18,23],[20,5,20,12],[20,15,20,23],[21,15,21,23],[39,4,39,23],[40,4,44,23],[45,4,56,23],[80,5,80,18],[58,4,58,6],[58,7,58,23],[59,4,59,6],[71,5,71,23],[57,4,57,20],[70,4,70,19],[82,5,82,23],[60,7,60,23],[78,4,78,23],[72,5,72,23],[73,5,73,23],[74,4,74,23],[75,4,75,23],[76,4,76,23],[77,4,77,23],[69,4,69,19]]}
[{"$nulls":26}," (требуется обновление)"]
[null,{"$f":"\"Код шаблона: \" & GetCode()","v":"Код шаблона: FAS.JKH.OPEN.INFO.QUARTER.HVS"}]
[null,{"$f":"\"Версия \" & Getversion()","v":"Версия 1.0.1"}]
[]
[null,{"$f":"Титульный!E5","v":"Информация о наличии (отсутствии) технической возможности подключения к централизованной системе холодного водоснабжения, а также о регистрации и ходе реализации заявок о подключении к централизованной системе холодного водоснабжения"}]
[]
[{"$nulls":4},"• На рабочем месте должен быть установлен MS Office 2007 SP3, 2010, 2013, 2016 с полной версией MS Excel\n\n• Макросы во время работы должны быть включены (!)\n\n• Для корректной работы отчёта требуется выбрать низкий уровень безопасности\n(В меню MS Excel 2007/2010/2013/2016: Параметры Excel | Центр управления безопасностью | Параметры центра управления безопасностью | Параметры макросов | Включить все макросы | ОК)\n\n• Если Вы работаете в табличном процессоре MS Excel 2007 и выше, то можете использовать для работы формат XLSB (Двоичная книга Excel). При работе в формате XLSB заметно быстрее происходит сохранение файла, а также уменьшается размер по сравнению с форматами XLS и XLSM\n\n• Не рекомендуется снимать защиту с листов и каким-либо образом модифицировать защищаемые формулы и расчётные поля, в противном случае, отчёт будет отклонён системой\n\n• При сохранении не следует выбирать формат XLSX (Книга Excel), так как в указанном формате макросы, необходимые для работы отчёта, безвозвратно удаляются"]
{"$rows_empty":13}
[{"$nulls":4},"A"," - не обязательные для заполнения",{"$nulls":8},"A"," - с формулами и константами"]
[{"$nulls":4},"A"," - обязательные для заполнения",{"$nulls":8},"A"," - с выбором значений до двойному клику"]
{"$rows_empty":12}
[{"$nulls":4},"Если в предложенном Вам списке необходимая организация, МР/МО отсутствуют, обновите реестры с помощью кнопок\n\nВ результате синхронизации с базой данных список организаций (МР/МО) будет заменён актуальным (механизм синхронизации требует подключения к сети Интернет и основан на использовании протокола HTTPS (TCP порт 443))\n\nЕсли после обновления Вам не удалось найти необходимую организацию в списке, обратитесь к ответственному за поддержание реестра Вашего региона."]
{"$rows_empty":10}
[{"$nulls":4},"• При сохранении шаблона осуществляется проверка корректности данных, в том числе на наличие значений в ячейках, обязательных для заполнения\n\n• Если какая-то ячейка не удовлетворяет условию проверки, на лист «Проверка» добавляется гиперссылка на данную ячейку и указывается причина ошибки\n\n• В колонке «Статус» для каждого сообщения возможны 2 значения: ошибка и предупреждение\n\n• При наличии сообщений со статусом «Ошибка» шаблон будет отклонён системой и не будет загружен в хранилище данных, сообщения со статусом «Предупреждение» носят информационный характер, и такой шаблон будет принят системой"]
{"$rows_empty":11}
[{"$nulls":4},"Обратиться за помощью в службу технической поддержки"]
{"$rows_empty":11}
[{"$nulls":4},"Инструкция по загрузке сопроводительных материалов"]
[{"$nulls":4},"Инструкция по работе с отчетной формой"]
{"$rows_empty":7}
[{"$nulls":4},"При наличии подключения к Интернет, можно автоматически проверять наличие доступных обновлений. Выберите способ оповещения о наличии обновлений для отчёта:"]
[]
[{"$nulls":5},"проверять доступные обновления (рекомендуется)",{"$nulls":20},"y"]
[]
[{"$nulls":5},"никогда не проверять наличие обновлений (не рекомендуется)"]

{"sheet":"Лог обновления","index":2,"n_rows":13,"n_cols":3,"rows_kept":13,"cut":false,"hidden":true,"merged":[]}
["Дата/Время","Сообщение","Статус"]
["2020-01-21T11:18:14","Проверка доступных обновлений...","Информация"]
["2020-01-21T11:18:15","Нет доступных обновлений для отчёта с кодом FAS.JKH.OPEN.INFO.QUARTER.HVS!","Информация"]
["2020-01-21T11:18:29","Проверка доступных обновлений...","Информация"]
["2020-01-21T11:18:30","Нет доступных обновлений для отчёта с кодом FAS.JKH.OPEN.INFO.QUARTER.HVS!","Информация"]
["2020-01-21T11:19:00","Проверка доступных обновлений...","Информация"]
["2020-01-21T11:19:01","Нет доступных обновлений для отчёта с кодом FAS.JKH.OPEN.INFO.QUARTER.HVS!","Информация"]
["2020-01-21T11:21:36","Проверка доступных обновлений...","Информация"]
["2020-01-21T11:21:37","Нет доступных обновлений для отчёта с кодом FAS.JKH.OPEN.INFO.QUARTER.HVS!","Информация"]
["2020-05-06T14:15:28","Проверка доступных обновлений...","Информация"]
["2020-05-06T14:15:29","Нет доступных обновлений для отчёта с кодом FAS.JKH.OPEN.INFO.QUARTER.HVS!","Информация"]
["2020-05-20T09:06:01","Проверка доступных обновлений...","Информация"]
["2020-05-20T09:06:02","Нет доступных обновлений для отчёта с кодом FAS.JKH.OPEN.INFO.QUARTER.HVS!","Информация"]

{"sheet":"Титульный","index":3,"n_rows":39,"n_cols":6,"rows_kept":39,"cut":false,"hidden":false,"merged":[[4,4,4,5]]}
[{"$nulls":5},26358324]
[]
[]
[{"$nulls":5},{"$f":"version","v":"Версия 1.0.1"}]
[{"$nulls":4},"Информация о наличии (отсутствии) технической возможности подключения к централизованной системе холодного водоснабжения, а также о регистрации и ходе реализации заявок о подключении к централизованной системе холодного водоснабжения"]
[]
[{"$nulls":4},"Субъект РФ","Нижегородская область"]
[]
[{"$nulls":4},"Публикация2","На сайте регулирующего органа"]
[]
[{"$nulls":4},"Отсутствует Интернет в границах территории МО, где организация осуществляет регулируемые виды деятельности","нет"]
[]
[{"$nulls":4},"Тип отчета","первичное раскрытие информации"]
[{"$nulls":4},"Дата внесения изменений в информацию, подлежащую раскрытию","21.01.2020"]
[]
[{"$nulls":4},"Применяется дифференциация тарифа по централизованным системам теплоснабжения?"]
[{"$nulls":4},"Информация по скольким централизованным системам теплоснабжения будет заполнена в шаблоне?"]
[]
[{"$nulls":5},"Отчетный период"]
[null,null,2019,null,"Год",2020]
[null,null,"IV квартал",null,"Квартал","I квартал"]
[]
[{"$nulls":4},"Является ли данное юридическое лицо подразделением (филиалом) другой организации","нет"]
[]
[]
[{"$nulls":4},"Наименование организации","МУП \"ЖКХ Зарубинское\""]
[{"$nulls":4},"Наименование филиала"]
[{"$nulls":4},"ИНН","5248015611"]
[{"$nulls":4},"КПП","524801001"]
[{"$nulls":4},"Вид деятельности"]
[]
[{"$nulls":4},"Почтовый адрес регулируемой организации","606516 Нижегородская область, Городецкий район, с. Зарубино, ул. Комсомольская д.4"]
[{"$nulls":4},"Фамилия, имя, отчество руководителя","Коровина Фаина Алексеевна"]
[]
[{"$nulls":5},"Ответственный за составление формы"]
[{"$nulls":4},"Фамилия, имя, отчество","Воробьева Юлия Николаевна"]
[{"$nulls":4},"Должность","гл. бухгалтер"]
[{"$nulls":4},"(код) номер телефона","8-831-61-48-444"]
[{"$nulls":4},"e-mail","zhkhzarubino@yandex.ru"]

{"sheet":"Территории","index":4,"n_rows":17,"n_cols":18,"rows_kept":17,"cut":false,"hidden":false,"merged":[[12,7,14,7],[11,2,15,2],[11,3,15,3],[11,4,15,4],[12,5,14,5],[12,6,14,6],[8,5,8,6],[8,8,8,9],[9,5,9,6],[9,8,9,9],[3,3,3,7],[5,3,5,4],[5,5,5,6],[7,3,7,4],[7,5,7,7],[7,8,7,11]]}
[{"$nulls":10},"МО","ОКТМО","МР"]
[]
[]
[null,null,null,"Перечень муниципальных районов и муниципальных образований (территорий действия тарифа)"]
[]
[{"$nulls":5},"да"]
[]
[null,null,null,"Территория действия тарифа",null,"Муниципальный район",null,null,"Муниципальное образование"]
[null,null,null,"№ п/п","Наименование","№ п/п",null,"Наименование","№ п/п",null,"Наименование","ОКТМО"]
[null,null,null,"1","2","3",null,"4","5",null,"6","7"]
[null,null,null,0,null,"",null,null,"",null,null,null,"размерженный МР",null,null,"флаг используемости территории на листе Перечень тарифов","копия территорий","МР (ОКТМО)"]
[null,"auto",null,1,"Городецкий муниципальный район, Зиняковский сельсовет (22628416);","",0,null,"","0",null,null,{"$f":"mergeValue(H12)","v":0},null,null,{"$f":"IF(ISERROR(MATCH(MID(Q12,1,250),MID(note_ter,1,250),0)),\"n\",\"y\")","v":"n"},"Городецкий муниципальный район, Зиняковский сельсовет (22628416);",{"$f":"K12&\"(\"&L12&\")\"","v":"()"}]
[null,"auto",null,null,null,"",1,"Городецкий муниципальный район","","0",null,null,{"$f":"mergeValue(H13)","v":"Городецкий муниципальный район"},{"$nulls":4},{"$f":"K13&\"(\"&L13&\")\"","v":"()"}]
[null,"auto",{"$nulls":6},"",1,"Зиняковский сельсовет","22628416",{"$f":"mergeValue(H14)","v":"Городецкий муниципальный район"},{"$nulls":4},{"$f":"K14&\" (\"&L14&\")\"","v":"Зиняковский сельсовет (22628416)"}]
[{"$nulls":8},"",null,""]
[{"$nulls":5},"","","",""]
[null,"man",null,null,"","",null,null,"",{"$nulls":7},"Добавить территорию действия тарифа"]

{"sheet":"Дифференциация","index":5,"n_rows":26,"n_cols":26,"rows_kept":26,"cut":false,"hidden":false,"merged":[[21,9,22,9],[17,9,17,12],[19,6,19,7],[19,10,19,11],[18,10,18,11],[18,6,18,7],[24,2,25,2],[11,1,11,3],[12,1,12,3],[21,4,23,4],[21,5,23,5],[21,3,23,3],[17,5,17,8],[21,6,22,6],[21,7,22,7],[21,8,22,8],[17,0,18,0],[17,3,17,4],[3,3,3,8],[4,3,4,8],[7,4,7,5],[8,1,8,3],[5,0,6,5],[7,1,7,3],[8,4,8,5],[9,1,9,3],[9,4,9,5],[13,1,13,3],[10,4,10,5],[10,1,10,3]]}
[]
[]
[]
[null,null,null,{"$f":"Титульный!E5","v":"Информация о наличии (отсутствии) технической возможности подключения к централизованной системе холодного водоснабжения, а также о регистрации и ходе реализации заявок о подключении к централизованной системе холодного водоснабжения"}]
[null,null,null,{"$f":"IF(org=0,\"Не определено\",org)","v":"МУП \"ЖКХ Зарубинское\""}]
{"$rows_empty":12}
[null,null,null,"Вид деятельности",null,"Дифференциация по территориям оказания услуг",null,null,null,"Дифференциация по централизованным системам коммунальной инфраструктуры"]
[null,null,null,"№ п/п","Наименование","да/нет","№ п/п",null,"Наименование","да/нет","№ п/п",null,"Наименование"]
[null,null,null,"1","2","3","4",null,"5","6","7",null,"8"]
[]
[null,null,null,"1","Холодное водоснабжение. Питьевая вода","нет",null,1,null,"да","","1","централизованная система водоснабжения",{"$nulls":10},4189671,"a",1705000]
[{"$nulls":10},"",null,""]
[{"$nulls":8},"",null,""]
[{"$nulls":4},"",{"$nulls":5},""]
[{"$nulls":10},""]

{"sheet":"Форма 1.0.1","index":6,"n_rows":20,"n_cols":7,"rows_kept":20,"cut":false,"hidden":false,"merged":[[19,4,19,5],[4,3,4,6],[5,3,5,6],[7,3,7,6],[8,3,8,5],[8,6,9,6]]}
[{"$nulls":6},4]
[]
[]
[]
[null,null,null,"Форма 1.0.1 Основные параметры раскрываемой информации 1"]
[null,null,null,{"$f":"IF(org=0,\"Не определено\",org)","v":"МУП \"ЖКХ Зарубинское\""}]
[]
[null,null,22,"Форма 1.0.1"]
[null,null,null,"Параметры формы",null,null,"Описание параметров формы"]
[null,null,null,"№ п/п","Наименование параметра","Информация"]
[null,null,null,"1",2,3,4]
[null,null,null,1,"Дата заполнения/внесения изменений",{"$f":"IF(form_up_date=\"\",\"\",form_up_date)","v":"21.01.2020"},"Указывается календарная дата первичного заполнения или внесения изменений в форму в виде «ДД.ММ.ГГГГ»."]
[null,null,null,"2.1","Наименование централизованной системы коммунальной инфраструктуры","централизованная система водоснабжения","Указывается наименование централизованной системы холодного водоснабжения/горячего водоснабжения/водоотведения/теплоснабжения, к которой относится размещаемая информация.\nВ случае наличия нескольких централизованных систем коммунальной инфраструктуры, информация по каждой из них указывается в отдельной строке. "]
[null,null,null,"3.1","Наименование регулируемого вида деятельности","Холодное водоснабжение. Питьевая вода","Указывается наименование вида регулируемой деятельности."]
[null,null,null,"4.1","Территория оказания услуги по регулируемому виду деятельности","x"]
[null,null,null,{"$f":"D15&\".1\"","v":"4.1.1"},"Субъект РФ",{"$f":"IF(region_name=\"\",\"\",region_name)","v":"Нижегородская область"},"Указывается наименование субъекта Российской Федерации"]
[null,null,null,"4.1.1.1","муниципальный район","Городецкий муниципальный район","Указывается наименование муниципального района, на территории которого организация оказывает услуги по регулируемому виду деятельности."]
[null,null,null,"4.1.1.1.1","муниципальное образование","Зиняковский сельсовет (22628416)","Указывается наименование и код муниципального района, муниципального образования в соответствии с Общероссийским классификатором территорий муниципальных образований (далее - ОКТМО), входящего в муниципальный район, на территории которого организация оказывает услуги по регулируемому виду деятельности.\nВ случае оказания услуг по регулируемому виду деятельности на территории нескольких муниципальных районов (муниципальных образований) данные по каждому их них указываются в отдельной строке."]
[]
[{"$nulls":4},"  1 Информация по данной форме публикуется при раскрытии информации по каждой из форм."]

{"sheet":"Форма 2.10","index":7,"n_rows":18,"n_cols":8,"rows_kept":18,"cut":false,"hidden":false,"merged":[[7,7,8,7],[4,3,4,6],[5,3,5,6],[7,3,8,3],[7,4,8,4],[7,5,8,5]]}
[{"$nulls":6},4]
[{"$nulls":5},"тыс.куб.м/сутки",null,"Указывается резерв мощности для централизованной системы холодного водоснабжения, тариф для которой не является отличным от тарифов других централизованных систем холодного водоснабжения регулируемой организации.\nПри использовании регулируемой организацией нескольких централизованных систем холодного водоснабжения информация о резерве мощности таких систем указывается в отношении каждой централизованной системы холодного водоснабжения в отдельных строках."]
[]
[]
[null,null,null,{"$f":"Титульный!E5","v":"Информация о наличии (отсутствии) технической возможности подключения к централизованной системе холодного водоснабжения, а также о регистрации и ходе реализации заявок о подключении к централизованной системе холодного водоснабжения"}]
[null,null,null,{"$f":"IF(org=0,\"Не определено\",org)","v":"МУП \"ЖКХ Зарубинское\""}]
[{"$nulls":6},22]
[null,null,null,"№ п/п","Наименование параметра","Единица измерения","Вид деятельности:\r\n  - Холодное водоснабжение. Питьевая вода\r\n\r\nТерритория оказания услуг:\r\n  - без дифференциации\r\n\r\nЦентрализованная система холодного водоснабжения:\r\n  - централизованная система водоснабжения","Описание параметров формы"]
[{"$nulls":6},"Информация"]
[null,null,null,"1","2","3",{"$f":"G1&\".1\"","v":"4.1"}]
[null,null,null,1,"Количество поданных заявок","ед",0,"Указывается количество поданных заявок на подключение (технологическое присоединение) к централизованной системе холодного водоснабжения в течение отчетного квартала."]
[null,null,null,2,"Количество исполненных заявок","ед",0,"Указывается количество исполненных заявок на подключение (технологическое присоединение) к централизованной системе холодного водоснабжения в течение отчетного квартала."]
[null,null,null,3,"Количество заявок с решением об отказе в подключении","ед",0,"Указывается количество заявок с решением об отказе о подключении (технологическому присоединению) к централизованной системе холодного водоснабжения в течение отчетного квартала."]
[null,null,null,4,"Причины отказа в подключении","x","0","Указывается текстовое описание причин принятия решений об отказе в подключении (технологическом присоединении) к централизованной системе холодного водоснабжения в случае.\nНе заполняется в случае, если решения об отказе в подключении (технологическом присоединении) в течение отчетного периода не принимались."]
[null,null,null,5,"Резерв мощности централизованной системы холодного водоснабжения в течение квартала, в том числе:","тыс.куб.м/сутки",{"$f":"SUM(G16:G18)","v":1.2999999999999999E-2},"Указывается резерв мощности централизованной системы холодного водоснабжения (совокупности централизованных систем холодного водоснабжения) в случае, если для них установлены одинаковые тарифы в сфере холодного водоснабжения.\nВ случае если регулируемыми организациями оказываются услуги по холодному водоснабжению по нескольким технологически не связанным между собой централизованным системам холодного водоснабжения, и если в отношении указанных систем устанавливаются различные тарифы в сфере холодного водоснабжения, то информация раскрывается отдельно по каждой централизованной системе холодного водоснабжения."]
[null,null,null,"5.0"]
[null,null,null,"5.1","Резерв мощности централизованной системы холодного водоснабжения в течение квартала, в том числе:","тыс.куб.м/сутки",1.2999999999999999E-2,"Указывается резерв мощности для централизованной системы холодного водоснабжения, тариф для которой не является отличным от тарифов других централизованных систем холодного водоснабжения регулируемой организации.\nПри использовании регулируемой организацией нескольких централизованных систем холодного водоснабжения информация о резерве мощности таких систем указывается в отношении каждой централизованной системы холодного водоснабжения в отдельных строках."]
[{"$nulls":4},"Добавить централизованную систему холодного водоснабжения"]

{"sheet":"Сведения об изменении","index":8,"n_rows":14,"n_cols":5,"rows_kept":14,"cut":false,"hidden":true,"merged":[[6,3,6,4],[7,3,7,4]]}
[]
[]
[]
[]
[]
[]
[null,null,null,"Сведения об изменениях в первоначально опубликованной информации"]
[null,null,null,{"$f":"IF(org=0,\"Не определено\",org)","v":"МУП \"ЖКХ Зарубинское\""}]
[]
[null,null,null,"№ п/п","Сведения"]
[null,null,null,"1","2"]
[null,null,null,0]
[null,null,null,1]
[{"$nulls":4},"Добавить строку"]

{"sheet":"Форма 1.0.2","index":9,"n_rows":15,"n_cols":13,"rows_kept":15,"cut":false,"hidden":true,"merged":[[11,10,12,10],[14,4,14,9],[4,3,4,9],[7,3,7,9],[7,10,9,10],[8,3,9,3],[8,4,8,5],[8,6,8,9]]}
[]
[]
[]
[]
[null,null,null,"Форма 1.0.2 Информация о публикации в печатных изданиях 2"]
[]
[]
[null,null,null,"Параметры формы",{"$nulls":6},"Описание параметров формы"]
[null,null,null,"№ п/п","Форма публикации",null,"Официальное печатное издание"]
[{"$nulls":4},"Номер","Наименование","Наименование","Номер","Дата выпуска","Ссылка на документ"]
[null,null,null,"1","2","3","4","5","6","7","8"]
["3","",null,"1",{"$nulls":6},"В колонке «Дата выпуска» дата выпуска печатного издания указывается в виде «ДД.ММ.ГГГГ».\nВ колонке «Ссылка на документ» указывается ссылка на отсканированную копию печатного издания, предварительно загруженную в хранилище федеральной государственной информационной системы «Единая информационно-аналитическая система «Федеральный орган регулирования - региональные органы регулирования - субъекты регулирования» (далее – ФГИС ЕИАС), с опубликованной информацией.\nВ случае публикации информации в нескольких печатных изданиях информация по каждому из них указывается в отдельной строке.",null,{"$f":"IF(ISERROR(INDEX(kind_of_nameforms,MATCH(E12,kind_of_forms,0),1)),\"\",INDEX(kind_of_nameforms,MATCH(E12,kind_of_forms,0),1))","v":""}]
[{"$nulls":4},"Добавить строку"]
[]
[{"$nulls":4},"2 В данной форме публикуется информация по каждой из форм раскрытия, данные в которой относятся к муниципальному образованию, в котором отсутствует доступ в информационно-телекоммуникационную сеть «Интернет» (далее – сеть «Интернет»)."]

{"sheet":"Комментарии","index":10,"n_rows":13,"n_cols":5,"rows_kept":13,"cut":false,"hidden":false,"merged":[[6,3,6,4],[7,3,7,4]]}
[]
[]
[]
[]
[]
[]
[null,null,null,"Комментарии"]
[null,null,null,{"$f":"IF(org=0,\"Не определено\",org)","v":"МУП \"ЖКХ Зарубинское\""}]
[]
[null,null,null,"№ п/п","Комментарий"]
[null,null,null,"1","2"]
[null,null,null,0]
[{"$nulls":4},"Добавить"]

{"sheet":"Проверка","index":11,"n_rows":4,"n_cols":5,"rows_kept":4,"cut":false,"hidden":false,"merged":[[1,1,1,4]]}
[]
[null,"Результат проверки"]
[]
[null,"Ссылка1","Ссылка2","Причина","Статус"]

{"sheet":"modReestr","index":12,"n_rows":0,"n_cols":0,"rows_kept":0,"cut":false,"hidden":true,"merged":[]}

{"sheet":"AllSheetsInThisWorkbook","index":13,"n_rows":39,"n_cols":2,"rows_kept":39,"cut":false,"hidden":true,"merged":[]}
["Расчетные листы","Скрытые листы"]
["Инструкция","modReestr"]
["Лог обновления","AllSheetsInThisWorkbook"]
["Титульный","TEHSHEET"]
["Территории","modCheckCyan"]
["Дифференциация","modInfo"]
["Форма 1.0.1","et_union_hor"]
["Форма 2.10","et_union_vert"]
["Сведения об изменении","modList00"]
["Форма 1.0.2","modList01"]
["Комментарии","modList02"]
["Проверка","modList03"]
[null,"modList04"]
[null,"modList07"]
[null,"modList09"]
[null,"modHTTP"]
[null,"modfrmRegion"]
[null,"MR_LIST"]
[null,"REESTR_VT"]
[null,"REESTR_VED"]
[null,"modfrmReestrObj"]
[null,"DataOrg"]
[null,"modProv"]
[null,"modfrmReestr"]
[null,"modUpdTemplMain"]
[null,"REESTR_ORG"]
[null,"modClassifierValidate"]
[null,"modHyp"]
[null,"modfrmDateChoose"]
[null,"modComm"]
[null,"modThisWorkbook"]
[null,"REESTR_MO"]
[null,"REESTR_MO_FILTER"]
[null,"modfrmReestrMR"]
[null,"modServiceModule"]
[null,"modfrmCheckUpdates"]
[null,"REESTR_DS"]
[null,"REESTR_CHS"]
[null,"REESTR_LINK"]

{"sheet":"TEHSHEET","index":14,"n_rows":87,"n_cols":20,"rows_kept":87,"cut":false,"hidden":true,"merged":[[0,18,0,19]]}
["REGION",null,"year_list","logical","Месяц\n(MONTH)","Квартал\n(QUARTER)","Месяц\n(kind_of_publication)","Единица измерения объема оказываемых услуг ГВС\n/kind_of_unit_GVS/","Вид тарифа\n/list_of_tariff/","mr_id","версия шаблона\n (DocProp_Version)","0.1","Тип отчета\ndata_type",{"$nulls":5},"Перечень форм\n(kind_of_forms)"]
["Алтайский край",null,2013,"да","январь","I квартал","На официальном сайте организации","тыс.куб.м/сутки",null,52,"код шаблона\n(DocProp_TemplateCode)","FAS.JKH.OPEN.INFO.QUARTER.HVS","первичное раскрытие информации",{"$nulls":5},"Форма 1.0.1","Основные параметры раскрываемой информации"]
["Амурская область",null,2014,"нет","февраль","II квартал","На сайте регулирующего органа","Гкал/час","Без дифференциации","sys_id","сфера\n(TSphere)","ХВС","изменения в раскрытой ранее информации",{"$nulls":5},"Форма 2.10",{"$f":"Титульный!E5","v":"Информация о наличии (отсутствии) технической возможности подключения к централизованной системе холодного водоснабжения, а также о регистрации и ходе реализации заявок о подключении к централизованной системе холодного водоснабжения"}]
["Архангельская область",null,2015,null,"март","III квартал",null,"куб.м/час",null,104,"сфера(латиница)\n(TSphere_trans)","VS"]
["Астраханская область",null,2016,null,"апрель","IV квартал",{"$nulls":4},"сфера расширено\n(TSphere_full)"]
["Белгородская область",null,2017,null,"май"]
["Брянская область",null,2018,null,"июнь"]
["Владимирская область",null,2019,null,"июль",{"$nulls":5},"true"]
["Волгоградская область",null,2020,null,"август"]
["Вологодская область",null,null,null,"сентябрь"]
["Воронежская область",null,null,null,"октябрь"]
["г.Байконур",null,null,null,"ноябрь"]
["г. Москва",null,null,null,"декабрь"]
["г.Санкт-Петербург"]
["г.Севастополь"]
["Еврейская автономная область",{"$nulls":5},"Текущая дата"]
["Забайкальский край",null,"Организация",{"$f":"IF(f_year = \"\",\"\", IF(LEN(f_quart)=0,\"\",IF(f_quart=\"I квартал\", \"01.01.\"&f_year,IF(f_quart=\"II квартал\",\"01.04.\"&f_year,(IF(f_quart=\"III квартал\", \"01.07.\"&f_year,\"01.10.\"&f_year)))) ))","v":"01.01.2020"},{"$f":"IF(f_year = \"\",\"\", IF(LEN(f_quart)=0,\"\",IF(f_quart=\"I квартал\", \"31.03.\"& f_year,IF(f_quart=\"II квартал\",\"30.06.\"& f_year,(IF(f_quart=\"III квартал\", \"30.09.\"& f_year,\"31.12.\"& f_year)))) ))","v":"31.03.2020"},null,"21.01.2020 16:16:36"]
["Ивановская область"]
["Иркутская область",{"$nulls":5},"Признак изменения данных на листе Доступ к товарам и услугам"]
["Кабардино-Балкарская республика",null,"Виды деятельности",null,null,null,true]
["Калининградская область"]
["Калужская область"]
["Камчатский край"]
["Карачаево-Черкесская республика"]
["Кемеровская область"]
["Кировская область"]
["Костромская область"]
["Краснодарский край"]
["Красноярский край"]
["Курганская область"]
["Курская область"]
["Ленинградская область"]
["Липецкая область"]
["Магаданская область"]
["Московская область"]
["Мурманская область"]
["Ненецкий автономный округ"]
["Нижегородская область"]
["Новгородская область"]
["Новосибирская область"]
["Омская область"]
["Оренбургская область"]
["Орловская область"]
["Пензенская область"]
["Пермский край"]
["Приморский край"]
["Псковская область"]
["Республика Адыгея"]
["Республика Алтай"]
["Республика Башкортостан"]
["Республика Бурятия"]
["Республика Дагестан"]
["Республика Ингушетия"]
["Республика Калмыкия"]
["Республика Карелия"]
["Республика Коми"]
["Республика Крым"]
["Республика Марий Эл"]
["Республика Мордовия"]
["Республика Саха (Якутия)"]
["Республика Северная Осетия-Алания"]
["Республика Татарстан"]
["Республика Тыва"]
["Республика Хакасия"]
["Ростовская область"]
["Рязанская область"]
["Самарская область"]
["Саратовская область"]
["Сахалинская область"]
["Свердловская область"]
["Смоленская область"]
["Ставропольский край"]
["Тамбовская область"]
["Тверская область"]
["Томская область"]
["Тульская область"]
["Тюменская область"]
["Удмуртская республика"]
["Ульяновская область"]
["Хабаровский край"]
["Ханты-Мансийский автономный округ"]
["Челябинская область"]
["Чеченская республика"]
["Чувашская республика"]
["Чукотский автономный округ"]
["Ямало-Ненецкий автономный округ"]
["Ярославская область"]

{"sheet":"modCheckCyan","index":15,"n_rows":9,"n_cols":1,"rows_kept":9,"cut":false,"hidden":true,"merged":[]}
[]
[{"$f":"IF('Сведения об изменении'!$E$13=\"\",1,0)","v":1}]
[{"$f":"IF(Дифференциация!$E$22=\"\",1,0)","v":0}]
[{"$f":"IF(Территории!$E$12=\"\",1,0)","v":0}]
[{"$f":"IF(Дифференциация!$M$22=\"\",1,0)","v":0}]
[{"$f":"IF('Форма 2.10'!$G$11=\"\",1,0)","v":0}]
[{"$f":"IF('Форма 2.10'!$G$12=\"\",1,0)","v":0}]
[{"$f":"IF('Форма 2.10'!$G$13=\"\",1,0)","v":0}]
[{"$f":"IF('Форма 2.10'!$E$17=\"\",1,0)","v":0}]

{"sheet":"modInfo","index":16,"n_rows":11,"n_cols":2,"rows_kept":11,"cut":false,"hidden":true,"merged":[[4,3,4,10],[0,3,0,10],[1,3,1,10],[2,3,2,10],[3,3,3,10]]}
[null,"Территории"]
[1,"Наименование территории оказания услуг для целей идентификации"]
[2,"Муниципальные районы и муниципальные образования, на территории которых осуществляется оказание услуг"]
[null,"Дифференциация"]
[1,"В случае, если регулируемая организация осуществляет несколько видов деятельности, информация о которых подлежит раскрытию, информация по каждому виду деятельности раскрывается отдельно."]
[2,"Поле заполняется выбором значений из списка. Если значений для выбора нет - убедитесь, что лист \"Территории\" заполнен."]
[3,"Условное наименование централизованной системы коммунальной инфраструктуры для целей идентификации."]
[4,"В случае, если регулируемыми организациями оказываются услуги по нескольким технологически не связанным между собой  централизованным системам коммунальной инфраструктуры и если в отношении указанных централизованных систем устанавливаются различные тарифы, то информация раскрывается отдельно по каждой централизованной системе коммунальной инфраструктуры."]
[null,"Сведения об изменении"]
[1,"Лист заполняется в случае, если на Титульном листе в поле \"Тип отчета\" выбрано значение «Изменения в раскрытой ранее информации»."]
[null,"Нет доступных обновлений, версия отчёта актуальна"]

{"sheet":"et_union_hor","index":17,"n_rows":60,"n_cols":26,"rows_kept":60,"cut":false,"hidden":true,"merged":[[50,3,50,5],[50,6,51,6],[14,2,15,2],[14,3,15,3],[14,4,15,4],[19,2,20,2],[19,5,20,5],[34,6,35,6],[19,6,20,6],[49,3,49,6],[34,7,35,7],[34,8,35,8],[34,9,35,9],[28,8,29,8],[28,9,29,9],[19,7,20,7],[28,3,30,3],[28,4,30,4],[28,5,30,5],[28,6,29,6],[28,7,29,7]]}
[]
[]
["et_Comm"]
[]
[]
[]
["et_List04"]
[]
[]
[]
[]
[]
["et_List09_0"]
[]
[null,"auto",null,1,null,null,0,null,null,"0",null,null,{"$f":"mergeValue(H15)","v":0},null,null,{"$f":"IF(ISERROR(MATCH(MID(Q15,1,250),MID(note_ter,1,250),0)),\"n\",\"y\")","v":"y"},null,{"$f":"K15&\"(\"&L15&\")\"","v":"()"}]
[{"$nulls":7},"Добавить МР"]
[]
["et_List09_1"]
[]
[null,"auto",{"$nulls":4},0,null,null,"0",null,null,{"$f":"mergeValue(H20)","v":0},{"$nulls":4},{"$f":"K20&\"(\"&L20&\")\"","v":"()"}]
[{"$nulls":10},"Добавить МО"]
[]
["et_List09_2"]
[]
[null,"auto",{"$nulls":7},0,null,null,{"$f":"mergeValue(H25)","v":0},{"$nulls":4},{"$f":"K25&\" (\"&L25&\")\"","v":" ()"}]
[]
["et_List07_1"]
[]
[null,null,null,"1",null,"нет",null,1,null,"нет",null,"1",{"$nulls":12},"a",1705000]
[{"$nulls":12},"Добавить централизованную систему коммунальной инфраструктуры"]
[{"$nulls":8},"Добавить описание территории оказания услуг"]
[]
["et_List07_4"]
[]
[{"$nulls":7},1,null,"нет",null,"1",{"$nulls":12},"a",1705000]
[{"$nulls":12},"Добавить централизованную систему коммунальной инфраструктуры"]
[]
["et_List07_5"]
[]
[{"$nulls":11},"1",{"$nulls":12},"a",1705000]
[]
[]
["et_List03"]
[]
["3","",{"$nulls":10},{"$f":"IF(ISERROR(INDEX(kind_of_nameforms,MATCH(E45,kind_of_forms,0),1)),\"\",INDEX(kind_of_nameforms,MATCH(E45,kind_of_forms,0),1))","v":""}]
[]
["et_List02_st","et_List02_ter","et_List02_mr","et_List02_mo"]
[]
[]
[null,null,null,"Форма 1.0.1"]
[null,null,null,"Параметры формы",null,null,"Описание параметров формы"]
[null,null,null,"№ п/п","Наименование параметра","Информация"]
[null,null,null,"1",2,3,4]
[null,null,null,1,"Дата заполнения/внесения изменений",{"$f":"IF(form_up_date=\"\",\"\",form_up_date)","v":"21.01.2020"},"Указывается календарная дата первичного заполнения или внесения изменений в форму в виде «ДД.ММ.ГГГГ»."]
[null,null,null,"2.1","Наименование централизованной системы коммунальной инфраструктуры",null,"Указывается наименование централизованной системы холодного водоснабжения/горячего водоснабжения/водоотведения/теплоснабжения, к которой относится размещаемая информация.\nВ случае наличия нескольких централизованных систем коммунальной инфраструктуры, информация по каждой из них указывается в отдельной строке. "]
[null,null,null,"3.1","Наименование регулируемого вида деятельности",null,"Указывается наименование вида регулируемой деятельности."]
[null,null,null,"4.1","Территория оказания услуги по регулируемому виду деятельности","x"]
[null,null,null,{"$f":"D57&\".1\"","v":"4.1.1"},"Субъект РФ",{"$f":"IF(region_name=\"\",\"\",region_name)","v":"Нижегородская область"},"Указывается наименование субъекта Российской Федерации"]
[null,null,null,"4.1.1.1","муниципальный район",null,"Указывается наименование муниципального района, на территории которого организация оказывает услуги по регулируемому виду деятельности."]
[null,null,null,"4.1.1.1.1","муниципальное образование",null,"Указывается наименование и код муниципального района, муниципального образования в соответствии с Общероссийским классификатором территорий муниципальных образований (далее - ОКТМО), входящего в муниципальный район, на территории которого организация оказывает услуги по регулируемому виду деятельности.\nВ случае оказания услуг по регулируемому виду деятельности на территории нескольких муниципальных районов (муниципальных образований) данные по каждому их них указываются в отдельной строке."]

{"sheet":"et_union_vert","index":18,"n_rows":0,"n_cols":0,"rows_kept":0,"cut":false,"hidden":true,"merged":[]}

{"sheet":"modList00","index":19,"n_rows":0,"n_cols":0,"rows_kept":0,"cut":false,"hidden":true,"merged":[]}

{"sheet":"modList01","index":20,"n_rows":0,"n_cols":0,"rows_kept":0,"cut":false,"hidden":true,"merged":[]}

{"sheet":"modList02","index":21,"n_rows":0,"n_cols":0,"rows_kept":0,"cut":false,"hidden":true,"merged":[]}

{"sheet":"modList03","index":22,"n_rows":0,"n_cols":0,"rows_kept":0,"cut":false,"hidden":true,"merged":[]}

{"sheet":"modList04","index":23,"n_rows":0,"n_cols":0,"rows_kept":0,"cut":false,"hidden":true,"merged":[]}

{"sheet":"modList07","index":24,"n_rows":0,"n_cols":0,"rows_kept":0,"cut":false,"hidden":true,"merged":[[5,0,6,1],[17,0,18,0]]}

{"sheet":"modList09","index":25,"n_rows":0,"n_cols":0,"rows_kept":0,"cut":false,"hidden":true,"merged":[]}

{"sheet":"modHTTP","index":26,"n_rows":0,"n_cols":0,"rows_kept":0,"cut":false,"hidden":true,"merged":[]}

{"sheet":"modfrmRegion","index":27,"n_rows":0,"n_cols":0,"rows_kept":0,"cut":false,"hidden":true,"merged":[]}

{"sheet":"MR_LIST","index":28,"n_rows":0,"n_cols":0,"rows_kept":0,"cut":false,"hidden":true,"merged":[]}

{"sheet":"REESTR_VT","index":29,"n_rows":0,"n_cols":0,"rows_kept":0,"cut":false,"hidden":true,"merged":[]}

{"sheet":"REESTR_VED","index":30,"n_rows":8,"n_cols":2,"rows_kept":8,"cut":false,"hidden":true,"merged":[]}
["ID_TARIFF_NAME","VED_NAME"]
[4189671,"Холодное водоснабжение. Питьевая вода"]
[4189672,"Холодное водоснабжение. Техническая вода"]
[4189673,"Холодное водоснабжение. Подвозная вода"]
[4189674,"Транспортировка. Питьевая вода"]
[4189675,"Транспортировка. Техническая вода"]
[4189676,"Транспортировка. Подвозная вода"]
[4189677,"Подключение (технологическое присоединение) к централизованной системе водоснабжения"]

{"sheet":"modfrmReestrObj","index":31,"n_rows":0,"n_cols":0,"rows_kept":0,"cut":false,"hidden":true,"merged":[]}

{"sheet":"DataOrg","index":32,"n_rows":0,"n_cols":0,"rows_kept":0,"cut":false,"hidden":true,"merged":[]}

{"sheet":"modfrmReestr","index":33,"n_rows":0,"n_cols":0,"rows_kept":0,"cut":false,"hidden":true,"merged":[]}

{"sheet":"modUpdTemplMain","index":34,"n_rows":0,"n_cols":0,"rows_kept":0,"cut":false,"hidden":true,"merged":[]}

{"sheet":"REESTR_ORG","index":35,"n_rows":328,"n_cols":10,"rows_kept":328,"cut":false,"hidden":true,"merged":[]}
["№","REGION_ID","REGION_NAME","RST_ORG_ID","ORG_NAME","INN_NAME","KPP_NAME","ORG_START_DATE","ORG_END_DATE"]
[1,"2634","Нижегородская область","27569496","АО \"БЭТ\"","7708669867","770801001",null,null,"VS"]
[2,"2634","Нижегородская область","26358301","АО \"Борская фабрика ПОШ\"","5246000458","524601001",null,null,"VS"]
[3,"2634","Нижегородская область","26373603","АО \"Борский водоканал\"","5246035757","524601001",null,null,"VS"]
[4,"2634","Нижегородская область","26373616","АО \"ВМЗ\"","5247004695","524701001",null,null,"VS"]
[5,"2634","Нижегородская область","31342493","АО \"ВЫКСУНСКИЙ ВОДОКАНАЛ\"","5247055210","524701001",null,null,"VS"]
[6,"2634","Нижегородская область","26373593","АО \"Волга\"","5244009279","524401001",null,null,"VS"]
[7,"2634","Нижегородская область","26560525","АО \"ГУ ЖКХ\"","5116000922","511601001","13-05-2009 00:00:00",null,"VS"]
[8,"2634","Нижегородская область","26358314","АО \"ДЗМО\"","5247004494","524701001",null,null,"VS"]
[9,"2634","Нижегородская область","26569426","АО \"ДПО \"Пластик\"","5249015251","524901001",null,null,"VS"]
[10,"2634","Нижегородская область","26322337","АО \"Дзержинское оргстекло\"","5249058752","524901001",null,null,"VS"]
[11,"2634","Нижегородская область","31258691","АО \"ЖКХ \"КАЛИКИНСКОЕ\"","5246038236","524601001",null,null,"VS"]
[12,"2634","Нижегородская область","28158144","АО \"ИП \"Ока-Полимер\"","5249120810","524901001",null,null,"VS"]
[13,"2634","Нижегородская область","26555226","АО \"ЛИНДОВСКОЕ\"","5246000377","524601001",null,null,"VS"]
[14,"2634","Нижегородская область","26358168","АО \"Лысковокоммунсервис\"","5222000321","522201001","09-12-2004 00:00:00",null,"VS"]
[15,"2634","Нижегородская область","26358385","АО \"МАНН\"","5256045754","525601001",null,null,"VS"]
[16,"2634","Нижегородская область","26358270","АО \"Молоко\"","5239001108","523901001",null,null,"VS"]
[17,"2634","Нижегородская область","26373662","АО \"НИЖЕГОРОДСКИЙ ВОДОКАНАЛ\"","5257086827","525350001",null,null,"VS"]
[18,"2634","Нижегородская область","26322360","АО \"НМЗ\"","5259008768","525901001",null,null,"VS"]
[19,"2634","Нижегородская область","31023931","АО \"НОКК\" (Балахнинский филиал)","5260267654","524443001",null,null,"VS"]
[20,"2634","Нижегородская область","31171901","АО \"НОКК\" (Сеченовский филиал)","5260267654","523043001",null,null,"VS"]
[21,"2634","Нижегородская область","26358290","АО \"НПО \"ПРЗ\"","5244012779","524401001",null,null,"VS"]
[22,"2634","Нижегородская область","27579751","АО \"НПП \"Исток\" им. Шокина\"","5050108496","520243001","07-02-1992 00:00:00",null,"VS"]
[23,"2634","Нижегородская область","26555359","АО \"СГК\"","5254082550","525401001",null,null,"VS"]
[24,"2634","Нижегородская область","26322331","АО \"СИБУР-НЕФТЕХИМ\"","5249051203","525350001",null,null,"VS"]
[25,"2634","Нижегородская область","26965665","АО \"Славянка\" филиал \"Нижегородский\"","7702707386","525743001",null,null,"VS"]
[26,"2634","Нижегородская область","26358489","АО \"ТРАНС-СИГНАЛ\"","5263024642","526301001","22-06-2016 00:00:00",null,"VS"]
[27,"2634","Нижегородская область","26358461","АО \"ТРАНСНЕФТЬ-ВЕРХНЯЯ ВОЛГА\"","5260900725","526001001",null,null,"VS"]
[28,"2634","Нижегородская область","26358197","АО «ХОХЛОМСКАЯ РОСПИСЬ»","5228001113","522801001",null,null,"VS"]
[29,"2634","Нижегородская область","26358413","АО НПП \"Полет\"","5258100129","525801001","29-12-2011 00:00:00",null,"VS"]
[30,"2634","Нижегородская область","26754787","АО ПТИЦЕФАБРИКА \"ВОРСМЕНСКАЯ\"","5252000689","525201000",null,null,"VS"]
[31,"2634","Нижегородская область","27635647","АУ \"Водоканал\"","5221005856","522101001",null,null,"VS"]
[32,"2634","Нижегородская область","26373555","Беловское МУП ЖКХ","5236002745","523601001",null,null,"VS"]
[33,"2634","Нижегородская область","26373435","Белозеровское МУМППЖКХ","5215000779","521501001","30-06-2006 00:00:00",null,"VS"]
[34,"2634","Нижегородская область","28156437","Боковское ММПП ЖКХ","5228002477","522801001",null,null,"VS"]
[35,"2634","Нижегородская область","27980367","ГБУ \"Варнавинский ПНИ\"","5207002268","520701001",null,null,"VS"]
[36,"2634","Нижегородская область","26358261","ГБУ \"Понетаевский ПНИ\"","5238001923","523801001",null,null,"VS"]
[37,"2634","Нижегородская область","26358243","ГБУ СРЦИ \"КРАСНЫЙ ЯР\"","5235001940","523501001",null,null,"VS"]
[38,"2634","Нижегородская область","26555218","ГБУЗ НО \"КИСЕЛИХИНСКИЙ ОБЛАСТНОЙ ТЕРАПЕВТИЧЕСКИЙ ГОСПИТАЛЬ ДЛЯ ВЕТЕРАНОВ ВОЙН\"","5246010400","524601001",null,null,"VS"]
[39,"2634","Нижегородская область","28043739","ГП НО НПЭК","5261005524","526101001",null,null,"VS"]
[40,"2634","Нижегородская область","26808802","Горьковская дирекция по тепловодоснабжению структурное подразделение Центральной дирекции по тепловодоснабжению - филиала ОАО \"РЖД\"","7708503727","525745041",null,null,"VS"]
[41,"2634","Нижегородская область","26358163","Дмитриевское МУП ЖКХ","5219382293","521901001",null,null,"VS"]
[42,"2634","Нижегородская область","26358130","Дубравское МУМППЖКХ","5215000842","521501001",null,null,"VS"]
[43,"2634","Нижегородская область","26358238","ЗАО \"ЗЖБИ \"АРЬЕВСКИЙ\"","5235000047","523501001",null,null,"VS"]
[44,"2634","Нижегородская область","26646780","ЗАО \"Завод \"Красная Этна\"","5258000029","525350001",null,null,"VS"]
[45,"2634","Нижегородская область","26646756","ЗАО \"Зефс Услуги\"","5258050742","525801001",null,null,"VS"]
[46,"2634","Нижегородская область","26322355","ЗАО \"Концерн \"Термаль\"","5261017382","526101001",null,null,"VS"]
[47,"2634","Нижегородская область","28870189","ЗАО \"УК ЖИЛСЕРВИС\"","5227004496","522701001",null,null,"VS"]
[48,"2634","Нижегородская область","26358255","КУЗНЕЦОВСКОЕ МУП ЖКХ","5236002390","523601001",null,null,"VS"]
[49,"2634","Нижегородская область","26358306","Каликинский шпалопропиточный завод - филиал ОАО  \"БетЭлТранс\"","5246001839","997650001",null,null,"VS"]
[50,"2634","Нижегородская область","26358258","Катунское МУП ЖКХ","5236004975","523601001",null,null,"VS"]
[51,"2634","Нижегородская область","26380569","Кужутское МУМППЖКХ","5215000458","521501001",null,null,"VS"]
[52,"2634","Нижегородская область","26358155","МКОУ \"Краснобаковская  С(К)ШИ VIII вида\"","5219001678","521901001","28-09-2011 00:00:00",null,"VS"]
[53,"2634","Нижегородская область","28005236","МКП \"Исток\"","5213005122","521301001",null,null,"VS"]
[54,"2634","Нижегородская область","27577824","МКП \"Покровский водоканал\"","5213005108","521301001",null,null,"VS"]
[55,"2634","Нижегородская область","27574144","МКП \"Родник\"","5213005066","521301001",null,null,"VS"]
[56,"2634","Нижегородская область","26951753","МКП \"Ручеек\"","5213005098","521301001",null,null,"VS"]
[57,"2634","Нижегородская область","26758213","МКП \"Ягубовский водоканал\"","5205005143","520501001","08-06-2010 00:00:00",null,"VS"]
[58,"2634","Нижегородская область","27577808","МКП Ветошкинского сельсовета \"Веткомхоз\"","5213005115","521301001",null,null,"VS"]
[59,"2634","Нижегородская область","29648861","МП \"ВАДРЕСУРС\"","5206025103","520601001",null,null,"VS"]
[60,"2634","Нижегородская область","26373534","МП \"Водоканал\"","5229007453","522901001","04-05-2007 00:00:00",null,"VS"]
[61,"2634","Нижегородская область","26373588","МП \"Водоканал\"","5240003928","524001001",null,null,"VS"]
[62,"2634","Нижегородская область","26373529","МП \"Горводопровод\"","5228009786","522801001",null,null,"VS"]
[63,"2634","Нижегородская область","26373443","МП \"ДИВЕЕВСКОЕ ЖКХ\"","5216017133","521601001",null,null,"VS"]
[64,"2634","Нижегородская область","26373449","МП \"ЖКХ \"Ковернинское\"","5218004355","521801001",null,null,"VS"]
[65,"2634","Нижегородская область","26373451","МП \"ЖКХ \"Сухоносовское\"","5218005045","521801001",null,null,"VS"]
[66,"2634","Нижегородская область","28942141","МП \"Жилкомсервис\"","5223034940","522301001",null,null,"VS"]
[67,"2634","Нижегородская область","31020386","МП \"КОММУНАЛЬНАЯ СЛУЖБА\"","5220007353","522001001","16-11-2016 00:00:00",null,"VS"]
[68,"2634","Нижегородская область","26358144","МП \"Коммунальник\"","5216017239","521601001",null,null,"VS"]
[69,"2634","Нижегородская область","30351196","МП \"Коммунальник\"","5220005444","522001001",null,null,"VS"]
[70,"2634","Нижегородская область","26373466","МП \"Коммунальщик\"","5220004183","522001001",null,null,"VS"]
[71,"2634","Нижегородская область","26358307","МП \"Линдовский ККПиБ\"","5246004124","524601001",null,null,"VS"]
[72,"2634","Нижегородская область","26373490","МП \"НКС\"","5223033369","522301001",null,null,"VS"]
[73,"2634","Нижегородская область","26373492","МП \"Радуга\"","5224003504","522401001",null,null,"VS"]
[74,"2634","Нижегородская область","26358141","МП \"Сатисское ЖКХ\"","5216017126","521601001",null,null,"VS"]
[75,"2634","Нижегородская область","26358297","МП ЖКХ С.КАМЕНКИ","5245007965","524501001",null,null,"VS"]
[76,"2634","Нижегородская область","31332830","МУМППЖКХ КУЖУТСКОЕ","5215003498","521501001",null,null,"VS"]
[77,"2634","Нижегородская область","26373565","МУП \"Архангельское ЖКХ\"","5238005879","523801001",null,null,"VS"]
[78,"2634","Нижегородская область","26652819","МУП \"Большое Козино\"","5244022199","524401001",null,null,"VS"]
[79,"2634","Нижегородская область","26373395","МУП \"Бутурлинскрайснабкомплект-1\"","5205004904","520501001",null,null,"VS"]
[80,"2634","Нижегородская область","26373543","МУП \"Бытсервис\"","5231004770","523101001",null,null,"VS"]
[81,"2634","Нижегородская область","31247110","МУП \"ВОДНИК\"","5234005042","523401001",null,null,"VS"]
[82,"2634","Нижегородская область","30868847","МУП \"ВОДОКАНАЛ\"","5225014467","522501001","03-04-2016 00:00:00",null,"VS"]
[83,"2634","Нижегородская область","26555458","МУП \"ВОДОКАНАЛ\"","5252021897","525201001",null,null,"VS"]
[84,"2634","Нижегородская область","30855659","МУП \"ВОРОТЫНСКОЕ ЖКХ\"","5211759886","521101001",null,null,"VS"]
[85,"2634","Нижегородская область","26556556","МУП \"Валтовское\"","5223033680","522301001",null,null,"VS"]
[86,"2634","Нижегородская область","26358098","МУП \"Варнавинкоммунсервис\"","5207003582","520701001",null,null,"VS"]
[87,"2634","Нижегородская область","27636510","МУП \"Вахтантепловодоканал\"","5239008713","523901001",null,null,"VS"]
[88,"2634","Нижегородская область","26373558","МУП \"Вершиловский сельский ЖЭУ\"","5236007310","523601001",null,null,"VS"]
[89,"2634","Нижегородская область","26373540","МУП \"Виткулово\"","5231005132","523101001",null,null,"VS"]
[90,"2634","Нижегородская область","28871157","МУП \"Водоканал\"","5239010720","523901001",null,null,"VS"]
[91,"2634","Нижегородская область","26373633","МУП \"Водоканал\"","5250021348","525001001",null,null,"VS"]
[92,"2634","Нижегородская область","26373654","МУП \"Ворсменское МПП ЖКХ\"","5252004965","525201001",null,null,"VS"]
[93,"2634","Нижегородская область","26373571","МУП \"Восход\"","5238005808","523801001",null,null,"VS"]
[94,"2634","Нижегородская область","26358264","МУП \"ГАРАНТ-ЖКХ\"","5238005477","523801001",null,null,"VS"]
[95,"2634","Нижегородская область","29645609","МУП \"Гидроторф - Водоканал\" МО \"р.п. Гидроторф\"","5244027743","524401001","03-04-2014 00:00:00",null,"VS"]
[96,"2634","Нижегородская область","26373661","МУП \"Горводоканал\"","5254005971","525401001",null,null,"VS"]
[97,"2634","Нижегородская область","28447754","МУП \"Городской Водоканал\"","5250058789","525001001",null,null,"VS"]
[98,"2634","Нижегородская область","27371762","МУП \"Городской жилфонд\"","5226013748","522601001",null,null,"VS"]
[99,"2634","Нижегородская область","26358220","МУП \"Елизарово\"","5231004795","523101001",null,null,"VS"]
[100,"2634","Нижегородская область","26358121","МУП \"ЖИЛИЩНИК\" ВОЛОДАРСКОГО РАЙОНА","5214006023","521401001",null,null,"VS"]
[101,"2634","Нижегородская область","28449409","МУП \"ЖКХ \"СЕВЕРНЫЙ\"","5248036146","524801001",null,null,"VS"]
[102,"2634","Нижегородская область","28005091","МУП \"ЖКХ Буревестник\"","5248033561","524801001",null,null,"VS"]
[103,"2634","Нижегородская область","26358324","МУП \"ЖКХ Зарубинское\"","5248015611","524801001",null,null,"VS"]
[104,"2634","Нижегородская область","26358331","МУП \"ЖКХ Зиняковское\"","5248015700","524801001",null,null,"VS"]
[105,"2634","Нижегородская область","26358333","МУП \"ЖКХ Ильинское\"","5248015724","524801001",null,null,"VS"]
[106,"2634","Нижегородская область","26358330","МУП \"ЖКХ Ковригинское\"","5248015690","524801001",null,null,"VS"]
[107,"2634","Нижегородская область","26358329","МУП \"ЖКХ Кумохинское\"","5248015682","524801001",null,null,"VS"]
[108,"2634","Нижегородская область","28147903","МУП \"ЖКХ Лысковского района\"","5222070569","522201001",null,null,"VS"]
[109,"2634","Нижегородская область","26358335","МУП \"ЖКХ Мошковское\"","5248015756","524801001",null,null,"VS"]
[110,"2634","Нижегородская область","26358336","МУП \"ЖКХ ПЕРВОМАЙСКОЕ\"","5248016703","524801001",null,null,"VS"]
[111,"2634","Нижегородская область","27893480","МУП \"ЖКХ Сеченовское\"","5230004200","523001001",null,null,"VS"]
[112,"2634","Нижегородская область","26358327","МУП \"ЖКХ Смольковское\"","5248015650","524801001",null,null,"VS"]
[113,"2634","Нижегородская область","26358334","МУП \"ЖКХ Тимирязево\"","5248015749","524801001",null,null,"VS"]
[114,"2634","Нижегородская область","26358332","МУП \"ЖКХ Федуринское\"","5248015717","524801001",null,null,"VS"]
[115,"2634","Нижегородская область","31266429","МУП \"ЖКХ\"","5208006025","520801001",null,null,"VS"]
[116,"2634","Нижегородская область","26358081","МУП \"Жилком\"","5201029760","520101001",null,null,"VS"]
[117,"2634","Нижегородская область","26373562","МУП \"Жилкоммунсервис\" д. Котельницы","5236007126","523601001",null,null,"VS"]
[118,"2634","Нижегородская область","27571987","МУП \"Зубилихинское ЖКХ\"","5219382991","521901001",null,null,"VS"]
[119,"2634","Нижегородская область","28871911","МУП \"КОММУНАЛЬЩИК\"","5225006709","522501001",null,null,"VS"]
[120,"2634","Нижегородская область","30872197","МУП \"КОММУНРЕСУРС КРАСНОБАКОВСКОГО РАЙОНА\"","5219383900","521901001","02-08-2016 00:00:00",null,"VS"]
[121,"2634","Нижегородская область","31269985","МУП \"КОММУНСЕРВИС\"","5237003886","523701001",null,null,"VS"]
[122,"2634","Нижегородская область","26552168","МУП \"КОМУНЭНЕРГО\"","5238006336","523801001",null,null,"VS"]
[123,"2634","Нижегородская область","30354230","МУП \"КОНЕВО\"","5244029437","524401001",null,null,"VS"]
[124,"2634","Нижегородская область","31181219","МУП \"КУДЕЯРОВСКОЕ КОММУНАЛЬНОЕ ПРЕДПРИЯТИЕ\"","5221007010","522101001",null,null,"VS"]
[125,"2634","Нижегородская область","26373446","МУП \"Княгининское ЖКХ\"","5217000037","521701001",null,null,"VS"]
[126,"2634","Нижегородская область","26373584","МУП \"Ком-сервис\"","5238005815","523801001",null,null,"VS"]
[127,"2634","Нижегородская область","26358114","МУП \"Коммунальник\"","5214000039","521401001",null,null,"VS"]
[128,"2634","Нижегородская область","28146599","МУП \"Коммунальник\"","5222003594","522201001",null,null,"VS"]
[129,"2634","Нижегородская область","26373510","МУП \"Коммунальщик\"","5226013184","522601001",null,null,"VS"]
[130,"2634","Нижегородская область","26373421","МУП \"Коммунсервис\"","5214000230","521401001",null,null,"VS"]
[131,"2634","Нижегородская область","28827589","МУП \"Кочергино\"","5244025619","524401001",null,null,"VS"]
[132,"2634","Нижегородская область","26557794","МУП \"Красноборское ЖКХ\"","5238005928","523801001",null,null,"VS"]
[133,"2634","Нижегородская область","30959246","МУП \"ЛУКОЯНОВСКИЙ ВОДОКАНАЛ\"","5221006970","522101001",null,null,"VS"]
[134,"2634","Нижегородская область","26358265","МУП \"Лесогорск ЖКХ\"","5238005484","523801001",null,null,"VS"]
[135,"2634","Нижегородская область","31158286","МУП \"Лысковокоммунсервис\"","5222071587","522201001",null,null,"VS"]
[136,"2634","Нижегородская область","28872216","МУП \"МАЛОЕ КОЗИНО\"","5244028031","524401001",null,null,"VS"]
[137,"2634","Нижегородская область","31314620","МУП \"МП \"БРКК\" МО \"БМР\"","5244031690","524401001",null,null,"VS"]
[138,"2634","Нижегородская область","27839234","МУП \"МП \"Водоканал\" МО \"города Балахна\"","5244025070","524401001",null,null,"VS"]
[139,"2634","Нижегородская область","26652814","МУП \"МП \"ТЕПЛОЭНЕРГО\" МО \"БМР НО\"","5244022262","524401001",null,null,"VS"]
[140,"2634","Нижегородская область","27808573","МУП \"Новосмолинское\"","5214010679","521401001",null,null,"VS"]
[141,"2634","Нижегородская область","26358266","МУП \"ПРАКТИК\"","5238005533","523801001",null,null,"VS"]
[142,"2634","Нижегородская область","26373647","МУП \"Райводоканал\"","5251007667","525101001","16-11-2001 00:00:00",null,"VS"]
[143,"2634","Нижегородская область","30382083","МУП \"СЕВЕРНОЕ ЖКХ\"","5207016670","520701001",null,null,"VS"]
[144,"2634","Нижегородская область","26358226","МУП \"СПАССКОЕ ЖКХ\"","5232002977","523201001",null,null,"VS"]
[145,"2634","Нижегородская область","26380675","МУП \"СТОКИ\"","5247015217","524701001",null,null,"VS"]
[146,"2634","Нижегородская область","26373539","МУП \"Сеченовское ЖКХ\"","5230000050","523001001",null,null,"VS"]
[147,"2634","Нижегородская область","26358268","МУП \"Смирновец\"","5238005558","523801001",null,null,"VS"]
[148,"2634","Нижегородская область","26373448","МУП \"Соловьевское ЖКХ\"","5217000333","521701003",null,null,"VS"]
[149,"2634","Нижегородская область","27636513","МУП \"Сявакоммунсервис\"","5239008061","523901001",null,null,"VS"]
[150,"2634","Нижегородская область","26373630","МУП \"ТВК\" г. Заволжья","5248016372","524801001",null,null,"VS"]
[151,"2634","Нижегородская область","31348885","МУП \"ТРУД\"","5201002409","520101001",null,null,"VS"]
[152,"2634","Нижегородская область","27573878","МУП \"Тепло\"","5252029494","525201001",null,null,"VS"]
[153,"2634","Нижегородская область","26358322","МУП \"Тепловые сети\"","5248011350","524801001",null,null,"VS"]
[154,"2634","Нижегородская область","26358206","МУП \"Теплосервис\"","5228009803","522801001",null,null,"VS"]
[155,"2634","Нижегородская область","26358267","МУП \"Теплосети\"","5238005540","523801001",null,null,"VS"]
[156,"2634","Нижегородская область","26358221","МУП \"Теплоэнергия-1\"","5231004851","523101001",null,null,"VS"]
[157,"2634","Нижегородская область","26373596","МУП \"УВКХ\"","5245013020","524501001",null,null,"VS"]
[158,"2634","Нижегородская область","26373388","МУП \"Управляющая компания\"","5204001114","520401001",null,null,"VS"]
[159,"2634","Нижегородская область","27571980","МУП \"Чащихинское ЖКХ\"","5219382984","521901001","14-04-2011 00:00:00",null,"VS"]
[160,"2634","Нижегородская область","28053496","МУП \"ШОКС\"","5239010688","523901001",null,null,"VS"]
[161,"2634","Нижегородская область","26373587","МУП \"Шахуньяводоканал\"","5239008791","523901001",null,null,"VS"]
[162,"2634","Нижегородская область","27571975","МУП \"Шеманихинское ЖКХ\"","5219383106","521901001",null,null,"VS"]
[163,"2634","Нижегородская область","31082135","МУП \"ЮГАНЕЦКОЕ\"","5214011834","521401001",null,null,"VS"]
[164,"2634","Нижегородская область","26551775","МУП \"Юго-Запад\"","5227005267","522701001",null,null,"VS"]
[165,"2634","Нижегородская область","26358223","МУП \"Яковское\"","5231005125","523101001",null,null,"VS"]
[166,"2634","Нижегородская область","27188243","МУП «Ананьевское ЖКХ»","5217000326","521701001",null,null,"VS"]
[167,"2634","Нижегородская область","28977039","МУП ВАРНАВИНСКОГО РАЙОНА \"ВОДОКАНАЛ\"","5207000133","520701001",null,null,"VS"]
[168,"2634","Нижегородская область","31258650","МУП ВАРНАВИНСКОГО РАЙОНА \"ТЕПЛОСНАБЖЕНИЕ\"","5207016782","520701001",null,null,"VS"]
[169,"2634","Нижегородская область","31382274","МУП ВОСХОД ЖКХ","5201001934","520101001",null,null,"VS"]
[170,"2634","Нижегородская область","31089905","МУП Варнавинского района \"Водоснабжение\"","5207016750","520701001","28-04-2018 00:00:00",null,"VS"]
[171,"2634","Нижегородская область","26774409","МУП Варнавинского района \"Северный\"","5207013439","520701001",null,null,"VS"]
[172,"2634","Нижегородская область","27577563","МУП ЖКХ","5237002949","523701001",null,null,"VS"]
[173,"2634","Нижегородская область","26358136","МУП ЖКХ \"БОГОЯВЛЕНСКОЕ\"","5215010375","521501001",null,null,"VS"]
[174,"2634","Нижегородская область","28146582","МУП ЖКХ \"Бармино\"","5222000272","522201001",null,null,"VS"]
[175,"2634","Нижегородская область","28146616","МУП ЖКХ \"Валки\"","5222059798","522201001",null,null,"VS"]
[176,"2634","Нижегородская область","26373417","МУП ЖКХ \"Водоканал\"","5212007342","521201001",null,null,"VS"]
[177,"2634","Нижегородская область","26373427","МУП ЖКХ \"Жилсервис\" Володарского района","5214007997","521401001","10-06-2003 00:00:00",null,"VS"]
[178,"2634","Нижегородская область","26358120","МУП ЖКХ \"Ильиногорское\"","5214005012","521401001",null,null,"VS"]
[179,"2634","Нижегородская область","26358310","МУП ЖКХ \"КАЛИКИНСКОЕ\"","5246014281","524601001",null,null,"VS"]
[180,"2634","Нижегородская область","27633085","МУП ЖКХ \"Коммунальник\"","5203002330","520303001",null,null,"VS"]
[181,"2634","Нижегородская область","26358169","МУП ЖКХ \"Леньково\"","5222070336","522201001",null,null,"VS"]
[182,"2634","Нижегородская область","26358173","МУП ЖКХ \"Нива\"","5222001100","522201001",null,null,"VS"]
[183,"2634","Нижегородская область","26358170","МУП ЖКХ \"Просек\"","5222070343","522201001",null,null,"VS"]
[184,"2634","Нижегородская область","28452082","МУП ЖКХ \"Сокол\"","5248034734","524801001",null,null,"VS"]
[185,"2634","Нижегородская область","26555489","МУП ЖКХ \"Тепелевское\"","5215001797","521501001","13-10-2009 00:00:00",null,"VS"]
[186,"2634","Нижегородская область","28155211","МУП ЖКХ Бриляково","5248015668","524801001",null,null,"VS"]
[187,"2634","Нижегородская область","26553600","МУП ЖКХ Григоровского сельсовета","5204001467","520401001",null,null,"VS"]
[188,"2634","Нижегородская область","28155300","МУП ЖКХ Смиркино","5248015643","524801001",null,null,"VS"]
[189,"2634","Нижегородская область","26358092","МУП ЖКХ Холязинского сельсовета","5204003070","520401001",null,null,"VS"]
[190,"2634","Нижегородская область","26358091","МУП ЖКХ п. Советский","5204002319","520401001",null,null,"VS"]
[191,"2634","Нижегородская область","26552080","МУП ЖКХ р.п. Красные Баки","5219382342","521901001","04-07-2007 00:00:00",null,"VS"]
[192,"2634","Нижегородская область","26358231","МУП Тонкинского района \"Тонкинские теплосети\"","5233002810","523301001",null,null,"VS"]
[193,"2634","Нижегородская область","26373600","МУП п. Буревестник","5245012411","524501001",null,null,"VS"]
[194,"2634","Нижегородская область","26358129","Малопицкое МУМППЖКХ","5215000761","521501001","29-06-2006 00:00:00",null,"VS"]
[195,"2634","Нижегородская область","26358420","Нижегородский авиастроительный завод \"Сокол\" - филиал АО \"РСК \"МиГ\"","7714733528","525350001",null,null,"VS"]
[196,"2634","Нижегородская область","26358124","Нижегородское МУМППЖКХ","5215000391","521501001",null,null,"VS"]
[197,"2634","Нижегородская область","26358150","ОАО \"Агроплемкомбинат МИР\"","5218005172","521801001",null,null,"VS"]
[198,"2634","Нижегородская область","27367624","ОАО \"Агрофирма \"Птицефабрика Сеймовская\"","5214002050","521401001",null,null,"VS"]
[199,"2634","Нижегородская область","26555692","ОАО \"Вознесенский водоканал\"","5210189908","521001001",null,null,"VS"]
[200,"2634","Нижегородская область","26373632","ОАО \"ДВК\"","5260154749","524901001",null,null,"VS"]
[201,"2634","Нижегородская область","26358421","ОАО \"ЗТО \"Камея\"","5259010887","525901001",null,null,"VS"]
[202,"2634","Нижегородская область","26358117","ОАО \"Ильиногорское\"","5214001459","521401001",null,null,"VS"]
[203,"2634","Нижегородская область","26569255","ОАО \"Керма\"","5250001581","525001001",null,null,"VS"]
[204,"2634","Нижегородская область","26358237","ОАО \"Коммунтехсервис\"","5234003863","523401001",null,null,"VS"]
[205,"2634","Нижегородская область","26358321","ОАО \"ПАНСИОНАТ \"БУРЕВЕСТНИК\"","5248005892","524801001",null,null,"VS"]
[206,"2634","Нижегородская область","26650758","ОАО \"Плодопитомник\"","5222002248","522201001",null,null,"VS"]
[207,"2634","Нижегородская область","26648877","ОАО \"РЖД\" (Дирекция по тепловодоснабжению)","7708503727","997650010",null,null,"VS"]
[208,"2634","Нижегородская область","26808463","ОАО \"Синтез\"","5249003520","524901001",null,null,"VS"]
[209,"2634","Нижегородская область","27054261","ОАО \"ТГК-6\"","5257072937","526001001",null,null,"VS"]
[210,"2634","Нижегородская область","26358112","ОАО \"Тепловик\"","5211759082","521101001","26-02-2004 00:00:00",null,"VS"]
[211,"2634","Нижегородская область","26951315","ОАО \"УК ЖКХ Починковского района\"","5227006006","522701001",null,null,"VS"]
[212,"2634","Нижегородская область","26358214","ОАО \"УК ЖКХ Сергачского района\"","5229007213","522901001",null,null,"VS"]
[213,"2634","Нижегородская область","26816822","ОАО \"Эй Джи Си БСЗ\"","5246002261","525350001",null,null,"VS"]
[214,"2634","Нижегородская область","26373589","ООО \"АРЗАМАССКИЙ ВОДОКАНАЛ\"","5243027892","524301001","24-02-2010 00:00:00",null,"VS"]
[215,"2634","Нижегородская область","26358389","ООО \"Автозаводская ТЭЦ\"","5256049357","525601001",null,null,"VS"]
[216,"2634","Нижегородская область","28140500","ООО \"Агрофирма \"Волготрансгаз\"","5203001513","522202001",null,null,"VS"]
[217,"2634","Нижегородская область","26758117","ООО \"АкваКом\"","5228056218","522801001",null,null,"VS"]
[218,"2634","Нижегородская область","26358250","ООО \"Арьякоммунсервис\"","5235006602","523501001",null,null,"VS"]
[219,"2634","Нижегородская область","31043296","ООО \"БКК\"","5244030591","524401001",null,null,"VS"]
[220,"2634","Нижегородская область","26373394","ООО \"Бутурлинский водоканал\"","5205004809","520501001",null,null,"VS"]
[221,"2634","Нижегородская область","26373590","ООО \"Быт-Сервис\"","5244015434","524401001",null,null,"VS"]
[222,"2634","Нижегородская область","28007422","ООО \"ВАСИЛЬСУРСКАЯ ЖКО\"","5211000129","521101001",null,null,"VS"]
[223,"2634","Нижегородская область","28001435","ООО \"ВИКОМ\"","5210000334","521001001",null,null,"VS"]
[224,"2634","Нижегородская область","30836585","ООО \"ВОД-СТРОЙ\"","5221003383","522101001",null,null,"VS"]
[225,"2634","Нижегородская область","27367568","ООО \"Вадводоканал\"","5206024741","520601001",null,null,"VS"]
[226,"2634","Нижегородская область","30382101","ООО \"ВетлугаСервис\"","5209003147","520901001",null,null,"VS"]
[227,"2634","Нижегородская область","28456900","ООО \"Ветлугаводоканал\"","5209005955","520901001",null,null,"VS"]
[228,"2634","Нижегородская область","26555487","ООО \"ВоСток-ДК\"","5215001638","521501001",null,null,"VS"]
[229,"2634","Нижегородская область","27571534","ООО \"Водоканал\"","5221006360","522101001",null,null,"VS"]
[230,"2634","Нижегородская область","31166843","ООО \"Водоканал\"","5221007099","522101001",null,null,"VS"]
[231,"2634","Нижегородская область","26373553","ООО \"Водоканал\"","5235006585","523501001",null,null,"VS"]
[232,"2634","Нижегородская область","26555521","ООО \"Водоканал\"","5236007711","523601001",null,null,"VS"]
[233,"2634","Нижегородская область","26373608","ООО \"Водоканал\"","5247003099","524701001",null,null,"VS"]
[234,"2634","Нижегородская область","28857372","ООО \"Волга-УК \"ЖКХ\"","5244023957","524401001",null,null,"VS"]
[235,"2634","Нижегородская область","31026167","ООО \"Восход\"","5207016711","520701001",null,null,"VS"]
[236,"2634","Нижегородская область","26774403","ООО \"Восходкомин\"","5207013252","520701001",null,null,"VS"]
[237,"2634","Нижегородская область","26373418","ООО \"Гагинское ЖКХ\"","5213004143","521301001",null,null,"VS"]
[238,"2634","Нижегородская область","26869048","ООО \"Елена\"","5237003325","523701001",null,null,"VS"]
[239,"2634","Нижегородская область","28091842","ООО \"ЖКС\"","5223034676","522301001",null,null,"VS"]
[240,"2634","Нижегородская область","26373659","ООО \"ЖКХ Ярымово\"","5252022562","525201001",null,null,"VS"]
[241,"2634","Нижегородская область","26557165","ООО \"Жилкомсервис\"","5228055711","522801001",null,null,"VS"]
[242,"2634","Нижегородская область","31205498","ООО \"ЗАГОРОДНАЯ СЕРВИСНАЯ СЛУЖБА\"","5245018396","524501001",null,null,"VS"]
[243,"2634","Нижегородская область","26562570","ООО \"Заводские сети\"","5256049340","525350001",null,null,"VS"]
[244,"2634","Нижегородская область","26322342","ООО \"Зефс-энерго\"","5258049909","525801001",null,null,"VS"]
[245,"2634","Нижегородская область","31214020","ООО \"ИВК\"","5249157665","524901001",null,null,"VS"]
[246,"2634","Нижегородская область","31341452","ООО \"КАПИТАЛЪ\"","5244031891","524401001",null,null,"VS"]
[247,"2634","Нижегородская область","30854345","ООО \"КОММУНАЛЬЩИК-НН\"","5245027023","524501001","19-10-2015 00:00:00",null,"VS"]
[248,"2634","Нижегородская область","26555680","ООО \"КОМСЕРВИС-В\"","5208004853","520801001",null,null,"VS"]
[249,"2634","Нижегородская область","28815743","ООО \"КСК\"","5256122751","525601001",null,null,"VS"]
[250,"2634","Нижегородская область","28871053","ООО \"Капролактам-Энерго\"","5249133382","524901001",null,null,"VS"]
[251,"2634","Нижегородская область","26358104","ООО \"Коммунальник\"","5209005634","520901001",null,null,"VS"]
[252,"2634","Нижегородская область","27566780","ООО \"Коммунальщик\"","5245017794","524501001",null,null,"VS"]
[253,"2634","Нижегородская область","27634860","ООО \"Коммунальщик\"","5260262462","526001001",null,null,"VS"]
[254,"2634","Нижегородская область","26555474","ООО \"Коммунсервис\"","5230003848","523001001",null,null,"VS"]
[255,"2634","Нижегородская область","28455154","ООО \"Коммунсервис\"","5235007356","523501001",null,null,"VS"]
[256,"2634","Нижегородская область","27630632","ООО \"Кочуновский водоканал\"","5205005418","520501001",null,null,"VS"]
[257,"2634","Нижегородская область","26358111","ООО \"Кузьмияр\"","5211001210","521101001",null,null,"VS"]
[258,"2634","Нижегородская область","27886941","ООО \"Кузьмиярское\"","5211759413","521101001",null,null,"VS"]
[259,"2634","Нижегородская область","26795557","ООО \"Локал-Клининг\"","5248023556","524801001",null,null,"VS"]
[260,"2634","Нижегородская область","31044539","ООО \"Механика\"","5249152071","524901001",null,null,"VS"]
[261,"2634","Нижегородская область","28457679","ООО \"Мухтоловское ЖКХ\"","5201000264","520101001","03-07-2012 00:00:00",null,"VS"]
[262,"2634","Нижегородская область","31329641","ООО \"НЦПО\"","5250068561","525001001",null,null,"VS"]
[263,"2634","Нижегородская область","31322304","ООО \"Нижегородские технологии водопользования\"","5262360049","526201001",null,null,"VS"]
[264,"2634","Нижегородская область","26758070","ООО \"Никола\"","5228056095","522801001",null,null,"VS"]
[265,"2634","Нижегородская область","26358215","ООО \"Пожарки\"","5229007238","522901001","03-10-2006 00:00:00",null,"VS"]
[266,"2634","Нижегородская область","28425154","ООО \"Профит\"","5262287335","526201001",null,null,"VS"]
[267,"2634","Нижегородская область","26754771","ООО \"Птицефабрика \"Павловская\"","5252025796","525201001",null,null,"VS"]
[268,"2634","Нижегородская область","31187885","ООО \"РАЙВОДОКАНАЛ\"","5243037996","524301001",null,null,"VS"]
[269,"2634","Нижегородская область","28859728","ООО \"РАЙВОДОКАНАЛСЕРВИС\"","5202012350","520201001",null,null,"VS"]
[270,"2634","Нижегородская область","28985128","ООО \"РВК\"","5249135284","524901001","01-09-2014 00:00:00",null,"VS"]
[271,"2634","Нижегородская область","30949304","ООО \"РДУ\"","5249122133","524901001",null,null,"VS"]
[272,"2634","Нижегородская область","28451538","ООО \"РОСТ-Строй\"","5221005895","522101001",null,null,"VS"]
[273,"2634","Нижегородская область","26570488","ООО \"Райводоканал\"","5201030090","520101001","12-01-2009 00:00:00",null,"VS"]
[274,"2634","Нижегородская область","26650748","ООО \"РегионРесурс\"","5252023559","525201001",null,null,"VS"]
[275,"2634","Нижегородская область","28016596","ООО \"Ремстройсервис\"","5245023702","524501001",null,null,"VS"]
[276,"2634","Нижегородская область","26654120","ООО \"Ресурс\"","5225005769","522501001",null,null,"VS"]
[277,"2634","Нижегородская область","26551208","ООО \"Санаторий \"Городецкий\"","5248013357","524801001","13-10-1999 00:00:00",null,"VS"]
[278,"2634","Нижегородская область","26759066","ООО \"Сосновскдорремстрой\"","5231003248","523101001",null,null,"VS"]
[279,"2634","Нижегородская область","27322384","ООО \"Сухобезводнинское ЖКХ\"","5228056070","522801001",null,null,"VS"]
[280,"2634","Нижегородская область","27580815","ООО \"Сява ЖКУ\"","5239010053","523901001",null,null,"VS"]
[281,"2634","Нижегородская область","27784821","ООО \"Тепло\"","5239010078","523901001",null,null,"VS"]
[282,"2634","Нижегородская область","26358312","ООО \"Техноэнергосервис\"","5246022243","524601001",null,null,"VS"]
[283,"2634","Нижегородская область","31354953","ООО \"УК \"КОМИНТЕРН\"","5214013704","521401001",null,null,"VS"]
[284,"2634","Нижегородская область","30905542","ООО \"УК \"НОКК\"","7714740243","526001001",null,null,"VS"]
[285,"2634","Нижегородская область","31249802","ООО \"УК ВОДНИК\"","5227002227","522701001",null,null,"VS"]
[286,"2634","Нижегородская область","26555443","ООО \"Уренское ЖКХ\"","5235006592","523501001",null,null,"VS"]
[287,"2634","Нижегородская область","26373549","ООО \"Устакоммунсервис\"","5235006578","523501001",null,null,"VS"]
[288,"2634","Нижегородская область","26373383","ООО \"Чернухинские водопроводные сети Арзамасского района\"","5202007128","520201000",null,null,"VS"]
[289,"2634","Нижегородская область","27673406","ООО \"Экоин - НОРСИ\"","5250038535","525001001",null,null,"VS"]
[290,"2634","Нижегородская область","27774384","ООО \"Энерго Ресурс\"","5214010855","521401001",null,null,"VS"]
[291,"2634","Нижегородская область","26776525","ООО «Коммунальные системы»","5216017912","521601001",null,null,"VS"]
[292,"2634","Нижегородская область","28155314","ООО ВИК","5244018499","524401001",null,null,"VS"]
[293,"2634","Нижегородская область","30359845","ОП \"Нижегородское\" АО \"Главное управление жилищно-коммунального хозяйства\"","5116000922","526245001",null,null,"VS"]
[294,"2634","Нижегородская область","26358115","Ордена \"Знак Почета\" ОАО \"Сетка\"","5214000127","521401001",null,null,"VS"]
[295,"2634","Нижегородская область","26322338","ПАО \"ЗМЗ\"","5248004137","524801001",null,null,"VS"]
[296,"2634","Нижегородская область","26322359","ПАО \"Завод \"Красное Сормово\"","5263006629","526301001",null,null,"VS"]
[297,"2634","Нижегородская область","26358362","ПАО \"МИТРА\"","5252000456","525201001",null,null,"VS"]
[298,"2634","Нижегородская область","26506400","ПАО \"МРСК Центра и Приволжья\" филиал \"Нижновэнерго\"","5260200603","526002001",null,null,"VS"]
[299,"2634","Нижегородская область","26358101","ПАО \"ТРУД\"","5208000834","520801001",null,null,"VS"]
[300,"2634","Нижегородская область","26555466","Перевозское МУП \"Жилсервис\"","5225005342","522501001",null,null,"VS"]
[301,"2634","Нижегородская область","26358159","Прудовское МУП ЖКХ","5219005129","521901001",null,null,"VS"]
[302,"2634","Нижегородская область","26358256","Пуреховское МУП ЖКХ","5236002880","523601001",null,null,"VS"]
[303,"2634","Нижегородская область","30869142","СПК \"ЗАВЕТЫ ИЛЬИЧА\"","5222001075","522201001","20-09-2002 00:00:00",null,"VS"]
[304,"2634","Нижегородская область","26555497","СПК \"Ковернино\"","5218004299","521801001",null,null,"VS"]
[305,"2634","Нижегородская область","26555480","СПК \"Колхоз Искра\"","5245023484","524501001",null,null,"VS"]
[306,"2634","Нижегородская область","26555493","СПК \"Колхоз им. Кутузова\"","5218000791","521801001",null,null,"VS"]
[307,"2634","Нижегородская область","26555499","СПК \"Семинский\"","5218003601","521801001",null,null,"VS"]
[308,"2634","Нижегородская область","26358149","СПК \"Хохлома\"","5218000784","521801001",null,null,"VS"]
[309,"2634","Нижегородская область","26358126","Сарлейское МУМППЖКХ","5215000507","521501001","24-03-2006 00:00:00",null,"VS"]
[310,"2634","Нижегородская область","26373561","Соломатовское МУП ЖКХ","5236006683","523601001",null,null,"VS"]
[311,"2634","Нижегородская область","27372109","Суроватихинское МУМПЖКХ","5215000722","521501001",null,null,"VS"]
[312,"2634","Нижегородская область","26555672","ТНВ \"Нива-Михеев и К\"","5205000032","520501001",null,null,"VS"]
[313,"2634","Нижегородская область","31025414","ФГБУ \"ЦЖКУ\" МИНОБОРОНЫ РОССИИ","7729314745","526245001",null,null,"VS"]
[314,"2634","Нижегородская область","30903763","ФГБУ \"ЦЖКУ\" МИНОБОРОНЫ РОССИИ","7729314745","770101001",null,null,"VS"]
[315,"2634","Нижегородская область","26653400","ФГКУ Комбинат \"Монтаж\"","5244005940","524401001",null,null,"VS"]
[316,"2634","Нижегородская область","26358103","ФГОУ СПО \"Ветлужский лесотехнический техникум\"","5209002802","520901001",null,null,"VS"]
[317,"2634","Нижегородская область","26896942","ФГОУ СПО \"Ильино-Заборский сельскохозяйственный техникум\"","5228002533","522801001",null,null,"VS"]
[318,"2634","Нижегородская область","26755460","ФГОУ СПО \"Работкинский аграрный колледж\"","5250007142","525001001",null,null,"VS"]
[319,"2634","Нижегородская область","26358487","ФГУП \"Завод \"Электромаш\"","5263002110","526301001",null,null,"VS"]
[320,"2634","Нижегородская область","27566895","ФГУП \"Центр эксплуатации объектов наземной космической инфраструктуры\"","7702044530","770201001",null,null,"VS"]
[321,"2634","Нижегородская область","26322363","ФКП \"Завод имени Я.М. Свердлова\"","5249002485","524901001",null,null,"VS"]
[322,"2634","Нижегородская область","30870050","ФКУ ИК-4 ГУФСИН РОССИИ ПО НИЖЕГОРОДСКОЙ ОБЛАСТИ","5234002482","523401001",null,null,"VS"]
[323,"2634","Нижегородская область","27577557","ФКУ ИК-7 ГУФСИН РОССИИ ПО НИЖЕГОРОДСКОЙ ОБЛАСТИ","5207002317","520701001",null,null,"VS"]
[324,"2634","Нижегородская область","26358151","ФКУ ЛИУ-3 ГУФСИН РОССИИ ПО НИЖЕГОРОДСКОЙ ОБЛАСТИ","5219004125","521901001","21-03-2011 00:00:00",null,"VS"]
[325,"2634","Нижегородская область","28942868","Филиал \"Нижегородский\" ПАО \"Т ПЛЮС\"","6315376946","526043001",null,null,"VS"]
[326,"2634","Нижегородская область","26358460","Филиал ОАО \"Верхневолжские магистральные нефтепроводы\" - Горьковское районное нефтепроводное управление","5260900725","525002001",null,null,"VS"]
[327,"2634","Нижегородская область","28031747","филиал \"Нижегородский\" ОАО \"Славянка\"","7702707386","520201001",null,null,"VS"]

{"sheet":"modClassifierValidate","index":36,"n_rows":0,"n_cols":0,"rows_kept":0,"cut":false,"hidden":true,"merged":[]}

{"sheet":"modHyp","index":37,"n_rows":0,"n_cols":0,"rows_kept":0,"cut":false,"hidden":true,"merged":[]}

{"sheet":"modfrmDateChoose","index":38,"n_rows":0,"n_cols":0,"rows_kept":0,"cut":false,"hidden":true,"merged":[]}

{"sheet":"modComm","index":39,"n_rows":0,"n_cols":0,"rows_kept":0,"cut":false,"hidden":true,"merged":[]}

{"sheet":"modThisWorkbook","index":40,"n_rows":0,"n_cols":0,"rows_kept":0,"cut":false,"hidden":true,"merged":[]}

{"sheet":"REESTR_MO","index":41,"n_rows":370,"n_cols":4,"rows_kept":370,"cut":false,"hidden":true,"merged":[]}
["№","МР","МО","МО_ОКТМО"]
[1,"Ардатовский муниципальный район","Ардатовский муниципальный район","22602000"]
[2,"Ардатовский муниципальный район","Кужендеевский сельсовет","22602424"]
[3,"Ардатовский муниципальный район","Личадеевский сельсовет","22602428"]
[4,"Ардатовский муниципальный район","Михеевский сельсовет","22602432"]
[5,"Ардатовский муниципальный район","Рабочий поселок Ардатов","22602151"]
[6,"Ардатовский муниципальный район","Рабочий поселок Мухтолово","22602155"]
[7,"Ардатовский муниципальный район","Саконский сельсовет","22602436"]
[8,"Ардатовский муниципальный район","Стексовский сельсовет","22602440"]
[9,"Ардатовский муниципальный район","Хрипуновский сельсовет","22602444"]
[10,"Арзамасский муниципальный район","Абрамовский сельсовет","22603404"]
[11,"Арзамасский муниципальный район","Арзамасский муниципальный район","22603000"]
[12,"Арзамасский муниципальный район","Балахонихинский сельсовет","22603408"]
[13,"Арзамасский муниципальный район","Бебяевский сельсовет","22603456"]
[14,"Арзамасский муниципальный район","Березовский сельсовет","22603410"]
[15,"Арзамасский муниципальный район","Большетумановский сельсовет","22603412"]
[16,"Арзамасский муниципальный район","Кирилловский сельсовет","22603424"]
[17,"Арзамасский муниципальный район","Красносельский сельсовет","22603432"]
[18,"Арзамасский муниципальный район","Ломовский сельсовет","22603440"]
[19,"Арзамасский муниципальный район","Новоусадский сельсовет","22603452"]
[20,"Арзамасский муниципальный район","Рабочий поселок Выездное","22603155"]
[21,"Арзамасский муниципальный район","Слизневский сельсовет","22603472"]
[22,"Арзамасский муниципальный район","Чернухинский сельсовет","22603476"]
[23,"Арзамасский муниципальный район","Шатовский сельсовет","22603480"]
[24,"Балахнинский муниципальный район","Балахнинский муниципальный район","22605000"]
[25,"Балахнинский муниципальный район","Город Балахна","22605101"]
[26,"Балахнинский муниципальный район","Коневский сельсовет","22605408"]
[27,"Балахнинский муниципальный район","Кочергинский сельсовет","22605412"]
[28,"Балахнинский муниципальный район","Рабочий поселок Большое Козино","22605153"]
[29,"Балахнинский муниципальный район","Рабочий поселок Гидроторф","22605155"]
[30,"Балахнинский муниципальный район","Рабочий поселок Малое Козино","22605158"]
[31,"Балахнинский муниципальный район","Шеляуховский сельсовет","22605416"]
[32,"Богородский муниципальный район","Алешковский сельсовет","22607404"]
[33,"Богородский муниципальный район","Богородский муниципальный район","22607000"]
[34,"Богородский муниципальный район","Город Богородск","22607101"]
[35,"Богородский муниципальный район","Доскинский сельсовет","22607416"]
[36,"Богородский муниципальный район","Дуденевский сельсовет","22607420"]
[37,"Богородский муниципальный район","Каменский сельсовет","22607428"]
[38,"Богородский муниципальный район","Новинский сельсовет","22607436"]
[39,"Богородский муниципальный район","Хвощевский сельсовет","22607444"]
[40,"Богородский муниципальный район","Шапкинский сельсовет","22607448"]
[41,"Большеболдинский муниципальный район","Большеболдинский муниципальный район","22609000"]
[42,"Большеболдинский муниципальный район","Большеболдинский сельсовет","22609404"]
[43,"Большеболдинский муниципальный район","Молчановский сельсовет","22609416"]
[44,"Большеболдинский муниципальный район","Новослободской сельсовет","22609420"]
[45,"Большеболдинский муниципальный район","Пермеевский сельсовет","22609422"]
[46,"Большеболдинский муниципальный район","Пикшенский сельсовет","22609424"]
[47,"Большеболдинский муниципальный район","Черновский сельсовет","22609432"]
[48,"Большемурашкинский муниципальный район","Большемурашкинский муниципальный район","22610000"]
[49,"Большемурашкинский муниципальный район","Григоровский сельсовет","22610408"]
[50,"Большемурашкинский муниципальный район","Рабочий поселок Большое Мурашкино","22610151"]
[51,"Большемурашкинский муниципальный район","Советский сельсовет","22610404"]
[52,"Большемурашкинский муниципальный район","Холязинский сельсовет","22610428"]
[53,"Бутурлинский муниципальный район","Большебакалдский сельсовет","22612404"]
[54,"Бутурлинский муниципальный район","Бутурлинский муниципальный район","22612000"]
[55,"Бутурлинский муниципальный район","Каменищенский сельсовет","22612412"]
[56,"Бутурлинский муниципальный район","Кочуновский сельсовет","22612420"]
[57,"Бутурлинский муниципальный район","Рабочий поселок Бутурлино","22612151"]
[58,"Бутурлинский муниципальный район","Уваровский сельсовет","22612428"]
[59,"Бутурлинский муниципальный район","Ягубовский сельсовет","22612432"]
[60,"Вадский муниципальный район","Вадский муниципальный район","22614000"]
[61,"Вадский муниципальный район","Вадский сельсовет","22614404"]
[62,"Вадский муниципальный район","Дубенский сельсовет","22614408"]
[63,"Вадский муниципальный район","Круто-Майданский сельсовет","22614416"]
[64,"Вадский муниципальный район","Лопатинский сельсовет","22614420"]
[65,"Вадский муниципальный район","Новомирский сельсовет","22614424"]
[66,"Вадский муниципальный район","Стрельский сельсовет","22614432"]
[67,"Варнавинский муниципальный район","Богородский сельсовет","22615420"]
[68,"Варнавинский муниципальный район","Варнавинский муниципальный район","22615000"]
[69,"Варнавинский муниципальный район","Восходовский сельсовет","22615406"]
[70,"Варнавинский муниципальный район","Михаленинский сельсовет","22615416"]
[71,"Варнавинский муниципальный район","Рабочий поселок Варнавино","22615151"]
[72,"Варнавинский муниципальный район","Северный сельсовет","22615428"]
[73,"Варнавинский муниципальный район","Шудский сельсовет","22615430"]
[74,"Вачский муниципальный район","Арефинский сельсовет","22617408"]
[75,"Вачский муниципальный район","Вачский муниципальный район","22617000"]
[76,"Вачский муниципальный район","Казаковский сельсовет","22617424"]
[77,"Вачский муниципальный район","Новосельский сельсовет","22617432"]
[78,"Вачский муниципальный район","Рабочий поселок Вача","22617151"]
[79,"Вачский муниципальный район","Филинский сельсовет","22617436"]
[80,"Вачский муниципальный район","Чулковский сельсовет","22617440"]
[81,"Ветлужский муниципальный район","Ветлужский муниципальный район","22618000"]
[82,"Ветлужский муниципальный район","Волыновский сельсовет","22618408"]
[83,"Ветлужский муниципальный район","Город Ветлуга","22618101"]
[84,"Ветлужский муниципальный район","Крутцовский сельсовет","22618416"]
[85,"Ветлужский муниципальный район","Макарьевский сельсовет","22618420"]
[86,"Ветлужский муниципальный район","Мошкинский сельсовет","22618428"]
[87,"Ветлужский муниципальный район","Новоуспенский сельсовет","22618432"]
[88,"Ветлужский муниципальный район","Поселок им Калинина","22618154"]
[89,"Ветлужский муниципальный район","Проновский сельсовет","22618436"]
[90,"Ветлужский муниципальный район","Туранский сельсовет","22618444"]
[91,"Вознесенский муниципальный район","Бахтызинский сельсовет","22619408"]
[92,"Вознесенский муниципальный район","Благодатовский сельсовет","22619412"]
[93,"Вознесенский муниципальный район","Бутаковский сельсовет","22619416"]
[94,"Вознесенский муниципальный район","Вознесенский муниципальный район","22619000"]
[95,"Вознесенский муниципальный район","Криушинский сельсовет","22619420"]
[96,"Вознесенский муниципальный район","Мотызлейский сельсовет","22619428"]
[97,"Вознесенский муниципальный район","Нарышкинский сельсовет","22619432"]
[98,"Вознесенский муниципальный район","Полховско-Майданский сельсовет","22619440"]
[99,"Вознесенский муниципальный район","Рабочий поселок Вознесенское","22619151"]
[100,"Вознесенский муниципальный район","Сарминский сельсовет","22619444"]
[101,"Володарский муниципальный район","Володарский муниципальный район","22631000"]
[102,"Володарский муниципальный район","Город Володарск","22631103"]
[103,"Володарский муниципальный район","Золинский сельсовет","22631404"]
[104,"Володарский муниципальный район","Ильинский сельсовет","22631408"]
[105,"Володарский муниципальный район","Мулинский сельсовет","22631411"]
[106,"Володарский муниципальный район","Рабочий поселок Ильиногорск","22631160"]
[107,"Володарский муниципальный район","Рабочий поселок Решетиха","22631168"]
[108,"Володарский муниципальный район","Рабочий поселок Смолино","22631170"]
[109,"Володарский муниципальный район","Рабочий поселок Фролищи","22631173"]
[110,"Володарский муниципальный район","Рабочий поселок Центральный","22631176"]
[111,"Володарский муниципальный район","Рабочий поселок Юганец","22631179"]
[112,"Володарский муниципальный район","Сельсовет Красная Горка","22631402"]
[113,"Воротынский","Воротынский","22719000"]
[114,"Воскресенский муниципальный район","Благовещенский сельсовет","22622404"]
[115,"Воскресенский муниципальный район","Богородский сельсовет","22622408"]
[116,"Воскресенский муниципальный район","Владимирский сельсовет","22622416"]
[117,"Воскресенский муниципальный район","Воздвиженский сельсовет","22622420"]
[118,"Воскресенский муниципальный район","Воскресенский муниципальный район","22622000"]
[119,"Воскресенский муниципальный район","Глуховский сельсовет","22622424"]
[120,"Воскресенский муниципальный район","Егоровский сельсовет","22622432"]
[121,"Воскресенский муниципальный район","Капустихинский сельсовет","22622440"]
[122,"Воскресенский муниципальный район","Нахратовский сельсовет","22622452"]
[123,"Воскресенский муниципальный район","Нестиарский сельсовет","22622456"]
[124,"Воскресенский муниципальный район","Рабочий поселок Воскресенское","22622151"]
[125,"Воскресенский муниципальный район","Староустинский сельсовет","22622460"]
[126,"Гагинский муниципальный район","Большеаратский сельсовет","22626404"]
[127,"Гагинский муниципальный район","Ветошкинский сельсовет","22626408"]
[128,"Гагинский муниципальный район","Гагинский муниципальный район","22626000"]
[129,"Гагинский муниципальный район","Гагинский сельсовет","22626412"]
[130,"Гагинский муниципальный район","Покровский сельсовет","22626432"]
[131,"Гагинский муниципальный район","Ушаковский сельсовет","22626440"]
[132,"Гагинский муниципальный район","Юрьевский сельсовет","22626444"]
[133,"Городецкий муниципальный район","Бриляковский сельсовет","22628404"]
[134,"Городецкий муниципальный район","Город Заволжье","22628103"]
[135,"Городецкий муниципальный район","Городецкий муниципальный район","22628000"]
[136,"Городецкий муниципальный район","Зиняковский сельсовет","22628416"]
[137,"Городецкий муниципальный район","Ковригинский сельсовет","22628422"]
[138,"Городецкий муниципальный район","Кумохинский сельсовет","22628428"]
[139,"Городецкий муниципальный район","Николо-Погостинский сельсовет","22628442"]
[140,"Городецкий муниципальный район","Рабочий поселок Первомайский","22628154"]
[141,"Городецкий муниципальный район","Смиркинский сельсовет","22628444"]
[142,"Городецкий муниципальный район","Смольковский сельсовет","22628448"]
[143,"Городецкий муниципальный район","Тимирязевский сельсовет","22628452"]
[144,"Городецкий муниципальный район","Федуринский сельсовет","22628458"]
[145,"Городецкий муниципальный район","город Городец","22628101"]
[146,"Дальнеконстантиновский муниципальный район","Белозеровский сельсовет","22630408"]
[147,"Дальнеконстантиновский муниципальный район","Богоявленский сельсовет","22630412"]
[148,"Дальнеконстантиновский муниципальный район","Дальнеконстантиновский муниципальный район","22630000"]
[149,"Дальнеконстантиновский муниципальный район","Дубравский сельсовет","22630444"]
[150,"Дальнеконстантиновский муниципальный район","Кужутский сельсовет","22630428"]
[151,"Дальнеконстантиновский муниципальный район","Малопицкий сельсовет","22630430"]
[152,"Дальнеконстантиновский муниципальный район","Нижегородский сельсовет","22630420"]
[153,"Дальнеконстантиновский муниципальный район","Рабочий поселок Дальнее Константиново","22630151"]
[154,"Дальнеконстантиновский муниципальный район","Сарлейский сельсовет","22630440"]
[155,"Дальнеконстантиновский муниципальный район","Суроватихинский сельсовет","22630448"]
[156,"Дальнеконстантиновский муниципальный район","Тепелевский сельсовет","22630456"]
[157,"Дивеевский муниципальный район","Верякушский сельсовет","22632408"]
[158,"Дивеевский муниципальный район","Глуховский сельсовет","22632412"]
[159,"Дивеевский муниципальный район","Дивеевский муниципальный район","22632000"]
[160,"Дивеевский муниципальный район","Дивеевский сельсовет","22632416"]
[161,"Дивеевский муниципальный район","Елизарьевский сельсовет","22632420"]
[162,"Дивеевский муниципальный район","Ивановский сельсовет","22632424"]
[163,"Дивеевский муниципальный район","Сатисский сельсовет","22632432"]
[164,"ЗАТО город Саров","ЗАТО город Саров","22704000"]
[165,"Княгининский муниципальный район","Ананьевский сельсовет","22633404"]
[166,"Княгининский муниципальный район","Белкинский сельсовет","22633408"]
[167,"Княгининский муниципальный район","Возрожденский сельсовет","22633416"]
[168,"Княгининский муниципальный район","Город Княгинино","22633101"]
[169,"Княгининский муниципальный район","Княгининский муниципальный район","22633000"]
[170,"Княгининский муниципальный район","Соловьевский сельсовет","22633428"]
[171,"Ковернинский муниципальный район","Большемостовский сельсовет","22634412"]
[172,"Ковернинский муниципальный район","Гавриловский сельсовет","22634418"]
[173,"Ковернинский муниципальный район","Горевский сельсовет","22634420"]
[174,"Ковернинский муниципальный район","Ковернинский муниципальный район","22634000"]
[175,"Ковернинский муниципальный район","Рабочий поселок Ковернино","22634151"]
[176,"Ковернинский муниципальный район","Скоробогатовский сельсовет","22634436"]
[177,"Ковернинский муниципальный район","Хохломской сельсовет","22634452"]
[178,"Краснобаковский муниципальный район","Зубилихинский сельсовет","22635404"]
[179,"Краснобаковский муниципальный район","Краснобаковский муниципальный район","22635000"]
[180,"Краснобаковский муниципальный район","Прудовский сельсовет","22635430"]
[181,"Краснобаковский муниципальный район","Рабочий поселок Ветлужский","22635154"]
[182,"Краснобаковский муниципальный район","Рабочий поселок Красные Баки","22635151"]
[183,"Краснобаковский муниципальный район","Чащихинский сельсовет","22635424"]
[184,"Краснобаковский муниципальный район","Шеманихинский сельсовет","22635432"]
[185,"Краснооктябрьский муниципальный район","Большерыбушкинский сельсовет","22636408"]
[186,"Краснооктябрьский муниципальный район","Ендовищинский сельсовет","22636412"]
[187,"Краснооктябрьский муниципальный район","Кечасовский сельсовет","22636416"]
[188,"Краснооктябрьский муниципальный район","Ключищинский сельсовет","22636424"]
[189,"Краснооктябрьский муниципальный район","Краснооктябрьский муниципальный район","22636000"]
[190,"Краснооктябрьский муниципальный район","Маресевский сельсовет","22636425"]
[191,"Краснооктябрьский муниципальный район","Медянский сельсовет","22636426"]
[192,"Краснооктябрьский муниципальный район","Пошатовский сельсовет","22636427"]
[193,"Краснооктябрьский муниципальный район","Салганский сельсовет","22636428"]
[194,"Краснооктябрьский муниципальный район","Саргинский сельсовет","22636432"]
[195,"Краснооктябрьский муниципальный район","Семеновский сельсовет","22636436"]
[196,"Краснооктябрьский муниципальный район","Уразовский сельсовет","22636440"]
[197,"Краснооктябрьский муниципальный район","Чембилеевский сельсовет","22636444"]
[198,"Кстовский муниципальный район","Афонинский сельсовет","22637404"]
[199,"Кстовский муниципальный район","Безводнинский сельсовет","22637408"]
[200,"Кстовский муниципальный район","Ближнеборисовский сельсовет","22637412"]
[201,"Кстовский муниципальный район","Большеельнинский сельсовет","22637416"]
[202,"Кстовский муниципальный район","Большемокринский сельсовет","22637420"]
[203,"Кстовский муниципальный район","Город Кстово","22637101"]
[204,"Кстовский муниципальный район","Запрудновский сельсовет","22637424"]
[205,"Кстовский муниципальный район","Кстовский муниципальный район","22637000"]
[206,"Кстовский муниципальный район","Новоликеевский сельсовет","22637436"]
[207,"Кстовский муниципальный район","Прокошевский сельсовет","22637438"]
[208,"Кстовский муниципальный район","Работкинский сельсовет","22637440"]
[209,"Кстовский муниципальный район","Ройкинский сельсовет","22637442"]
[210,"Кстовский муниципальный район","Слободской сельсовет","22637444"]
[211,"Кстовский муниципальный район","Чернухинский сельсовет","22637448"]
[212,"Кстовский муниципальный район","Чернышихинский сельсовет","22637428"]
[213,"Лукояновский муниципальный район","Большеарский сельсовет","22639404"]
[214,"Лукояновский муниципальный район","Большемаресьевский сельсовет","22639412"]
[215,"Лукояновский муниципальный район","Город Лукоянов","22639101"]
[216,"Лукояновский муниципальный район","Кудеяровский сельсовет","22639430"]
[217,"Лукояновский муниципальный район","Лопатинский сельсовет","22639432"]
[218,"Лукояновский муниципальный район","Лукояновский муниципальный район","22639000"]
[219,"Лукояновский муниципальный район","Рабочий поселок им Степана Разина","22639154"]
[220,"Лукояновский муниципальный район","Тольско-Майданский сельсовет","22639464"]
[221,"Лукояновский муниципальный район","Шандровский сельсовет","22639472"]
[222,"Лысковский муниципальный район","Барминский сельсовет","22640404"]
[223,"Лысковский муниципальный район","Берендеевский сельсовет","22640406"]
[224,"Лысковский муниципальный район","Валковский сельсовет","22640408"]
[225,"Лысковский муниципальный район","Город Лысково","22640101"]
[226,"Лысковский муниципальный район","Кириковский сельсовет","22640420"]
[227,"Лысковский муниципальный район","Кисловский сельсовет","22640416"]
[228,"Лысковский муниципальный район","Красноосельский сельсовет","22640424"]
[229,"Лысковский муниципальный район","Леньковский сельсовет","22640428"]
[230,"Лысковский муниципальный район","Лысковский муниципальный район","22640000"]
[231,"Лысковский муниципальный район","Трофимовский сельсовет","22640452"]
[232,"Навашинский","Навашинский","22730000"]
[233,"Павловский муниципальный район","Абабковский сельсовет","22642404"]
[234,"Павловский муниципальный район","Варежский сельсовет","22642408"]
[235,"Павловский муниципальный район","Город Ворсма","22642103"]
[236,"Павловский муниципальный район","Город Горбатов","22642105"]
[237,"Павловский муниципальный район","Город Павлово","22642101"]
[238,"Павловский муниципальный район","Грудцинский сельсовет","22642412"]
[239,"Павловский муниципальный район","Калининский сельсовет","22642416"]
[240,"Павловский муниципальный район","Коровинский сельсовет","22642420"]
[241,"Павловский муниципальный район","Павловский муниципальный район","22642000"]
[242,"Павловский муниципальный район","Рабочий поселок Тумботино","22642155"]
[243,"Павловский муниципальный район","Таремский сельсовет","22642424"]
[244,"Перевозский","Перевозский","22739000"]
[245,"Пильнинский муниципальный район","Большеандосовский сельсовет","22645408"]
[246,"Пильнинский муниципальный район","Бортсурманский сельсовет","22645412"]
[247,"Пильнинский муниципальный район","Деяновский сельсовет","22645416"]
[248,"Пильнинский муниципальный район","Красногорский сельсовет","22645424"]
[249,"Пильнинский муниципальный район","Курмышский сельсовет","22645428"]
[250,"Пильнинский муниципальный район","Медянский сельсовет","22645432"]
[251,"Пильнинский муниципальный район","Можаров-Майданский сельсовет","22645436"]
[252,"Пильнинский муниципальный район","Новомочалеевский сельсовет","22645440"]
[253,"Пильнинский муниципальный район","Петряксинский сельсовет","22645448"]
[254,"Пильнинский муниципальный район","Пильнинский муниципальный район","22645000"]
[255,"Пильнинский муниципальный район","Рабочий поселок Пильна","22645151"]
[256,"Пильнинский муниципальный район","Тенекаевский сельсовет","22645456"]
[257,"Пильнинский муниципальный район","Языковский сельсовет","22645460"]
[258,"Починковский муниципальный район","Василево-Майданский сельсовет","22646412"]
[259,"Починковский муниципальный район","Василевский сельсовет","22646408"]
[260,"Починковский муниципальный район","Кочкуровский сельсовет","22646424"]
[261,"Починковский муниципальный район","Маресевский сельсовет","22646436"]
[262,"Починковский муниципальный район","Наруксовский сельсовет","22646440"]
[263,"Починковский муниципальный район","Пеля-Хованский сельсовет","22646456"]
[264,"Починковский муниципальный район","Починковский муниципальный район","22646000"]
[265,"Починковский муниципальный район","Починковский сельсовет","22646460"]
[266,"Починковский муниципальный район","Ризоватовский сельсовет","22646468"]
[267,"Починковский муниципальный район","Ужовский сельсовет","22646480"]
[268,"Семеновский","Семеновский","22737000"]
[269,"Сергачский муниципальный район","Андреевский сельсовет","22648412"]
[270,"Сергачский муниципальный район","Ачкинский сельсовет","22648416"]
[271,"Сергачский муниципальный район","Богородский сельсовет","22648420"]
[272,"Сергачский муниципальный район","Город Сергач","22648101"]
[273,"Сергачский муниципальный район","Камкинский сельсовет","22648428"]
[274,"Сергачский муниципальный район","Кочко-Пожарский сельсовет","22648432"]
[275,"Сергачский муниципальный район","Лопатинский сельсовет","22648436"]
[276,"Сергачский муниципальный район","Пожарский сельсовет","22648444"]
[277,"Сергачский муниципальный район","Сергачский муниципальный район","22648000"]
[278,"Сергачский муниципальный район","Староберезовский сельсовет","22648452"]
[279,"Сергачский муниципальный район","Толбинский сельсовет","22648456"]
[280,"Сергачский муниципальный район","Шубинский сельсовет","22648460"]
[281,"Сеченовский муниципальный район","Болтинский сельсовет","22649408"]
[282,"Сеченовский муниципальный район","Васильевский сельсовет","22649412"]
[283,"Сеченовский муниципальный район","Верхнеталызинский сельсовет","22649416"]
[284,"Сеченовский муниципальный район","Кочетовский сельсовет","22649420"]
[285,"Сеченовский муниципальный район","Красноостровский сельсовет","22649428"]
[286,"Сеченовский муниципальный район","Мурзицкий сельсовет","22649440"]
[287,"Сеченовский муниципальный район","Сеченовский муниципальный район","22649000"]
[288,"Сеченовский муниципальный район","Сеченовский сельсовет","22649444"]
[289,"Сокольский","Сокольский","22749000"]
[290,"Сосновский муниципальный район","Виткуловский сельсовет","22650412"]
[291,"Сосновский муниципальный район","Давыдковский сельсовет","22650414"]
[292,"Сосновский муниципальный район","Елизаровский сельсовет","22650416"]
[293,"Сосновский муниципальный район","Крутецкий сельсовет","22650420"]
[294,"Сосновский муниципальный район","Панинский сельсовет","22650424"]
[295,"Сосновский муниципальный район","Рабочий поселок Сосновское","22650151"]
[296,"Сосновский муниципальный район","Рожковский сельсовет","22650428"]
[297,"Сосновский муниципальный район","Селитьбенский сельсовет","22650432"]
[298,"Сосновский муниципальный район","Сосновский муниципальный район","22650000"]
[299,"Сосновский муниципальный район","Яковский сельсовет","22650436"]
[300,"Спасский муниципальный район","Базловский сельсовет","22651404"]
[301,"Спасский муниципальный район","Вазьянский сельсовет","22651420"]
[302,"Спасский муниципальный район","Высокоосельский сельсовет","22651412"]
[303,"Спасский муниципальный район","Красноватрасский сельсовет","22651416"]
[304,"Спасский муниципальный район","Маклаковский сельсовет","22651414"]
[305,"Спасский муниципальный район","Спасский муниципальный район","22651000"]
[306,"Спасский муниципальный район","Спасский сельсовет","22651432"]
[307,"Спасский муниципальный район","Турбанский сельсовет","22651440"]
[308,"Тонкинский муниципальный район","Бердниковский сельсовет","22652404"]
[309,"Тонкинский муниципальный район","Большесодомовский сельсовет","22652408"]
[310,"Тонкинский муниципальный район","Вязовский сельсовет","22652412"]
[311,"Тонкинский муниципальный район","Пакалевский сельсовет","22652416"]
[312,"Тонкинский муниципальный район","Рабочий поселок Тонкино","22652151"]
[313,"Тонкинский муниципальный район","Тонкинский муниципальный район","22652000"]
[314,"Тоншаевский муниципальный район","Березятский сельсовет","22653424"]
[315,"Тоншаевский муниципальный район","Кодочиговский сельсовет","22653408"]
[316,"Тоншаевский муниципальный район","Ложкинский сельсовет","22653412"]
[317,"Тоншаевский муниципальный район","Одошнурский сельсовет","22653416"]
[318,"Тоншаевский муниципальный район","Ошминский сельсовет","22653420"]
[319,"Тоншаевский муниципальный район","Рабочий поселок Пижма","22653154"]
[320,"Тоншаевский муниципальный район","Рабочий поселок Тоншаево","22653151"]
[321,"Тоншаевский муниципальный район","Рабочий поселок Шайгино","22653158"]
[322,"Тоншаевский муниципальный район","Тоншаевский муниципальный район","22653000"]
[323,"Тоншаевский муниципальный район","Увийский сельсовет","22653436"]
[324,"Уренский муниципальный район","Большеарьевский сельсовет","22654408"]
[325,"Уренский муниципальный район","Большепесочнинский сельсовет","22654409"]
[326,"Уренский муниципальный район","Ворошиловский сельсовет","22654410"]
[327,"Уренский муниципальный район","Вязовский сельсовет","22654412"]
[328,"Уренский муниципальный район","Горевский сельсовет","22654416"]
[329,"Уренский муниципальный район","Город Урень","22654101"]
[330,"Уренский муниципальный район","Карповский сельсовет","22654420"]
[331,"Уренский муниципальный район","Карпунихинский сельсовет","22654424"]
[332,"Уренский муниципальный район","Красногорский сельсовет","22654428"]
[333,"Уренский муниципальный район","Минеевский сельсовет","22654430"]
[334,"Уренский муниципальный район","Обходский сельсовет","22654432"]
[335,"Уренский муниципальный район","Рабочий поселок Арья","22654153"]
[336,"Уренский муниципальный район","Семеновский сельсовет","22654436"]
[337,"Уренский муниципальный район","Темтовский сельсовет","22654440"]
[338,"Уренский муниципальный район","Уренский муниципальный район","22654000"]
[339,"Уренский муниципальный район","Устанский сельсовет","22654444"]
[340,"Шарангский муниципальный район","Большерудкинский сельсовет","22656404"]
[341,"Шарангский муниципальный район","Большеустинский сельсовет","22656408"]
[342,"Шарангский муниципальный район","Кушнурский сельсовет","22656416"]
[343,"Шарангский муниципальный район","Рабочий поселок Шаранга","22656151"]
[344,"Шарангский муниципальный район","Роженцовский сельсовет","22656424"]
[345,"Шарангский муниципальный район","Старорудкинский сельсовет","22656428"]
[346,"Шарангский муниципальный район","Черномужский сельсовет","22656432"]
[347,"Шарангский муниципальный район","Шарангский муниципальный район","22656000"]
[348,"Шарангский муниципальный район","Щенниковский сельсовет","22656436"]
[349,"Шатковский муниципальный район","Архангельский сельсовет","22657404"]
[350,"Шатковский муниципальный район","Кержемокский сельсовет","22657416"]
[351,"Шатковский муниципальный район","Костянский сельсовет","22657424"]
[352,"Шатковский муниципальный район","Красноборский сельсовет","22657428"]
[353,"Шатковский муниципальный район","Рабочий поселок Лесогорск","22657154"]
[354,"Шатковский муниципальный район","Рабочий поселок Шатки","22657151"]
[355,"Шатковский муниципальный район","Светлогорский сельсовет","22657430"]
[356,"Шатковский муниципальный район","Силинский сельсовет","22657436"]
[357,"Шатковский муниципальный район","Смирновский сельсовет","22657448"]
[358,"Шатковский муниципальный район","Староиванцевский сельсовет","22657456"]
[359,"Шатковский муниципальный район","Шараповский сельсовет","22657460"]
[360,"Шатковский муниципальный район","Шатковский муниципальный район","22657000"]
[361,"город Арзамас","город Арзамас","22703000"]
[362,"город Бор","город Бор","22712000"]
[363,"город Выкса","город Выкса","22715000"]
[364,"город Дзержинск","город Дзержинск","22721000"]
[365,"город Кулебаки","город Кулебаки","22727000"]
[366,"город Нижний Новгород","город Нижний Новгород","22701000"]
[367,"город Первомайск","город Первомайск","22734000"]
[368,"город Чкаловск","город Чкаловск","22755000"]
[369,"город Шахунья","город Шахунья","22758000"]

{"sheet":"REESTR_MO_FILTER","index":42,"n_rows":0,"n_cols":0,"rows_kept":0,"cut":false,"hidden":true,"merged":[]}

{"sheet":"modfrmReestrMR","index":43,"n_rows":0,"n_cols":0,"rows_kept":0,"cut":false,"hidden":true,"merged":[]}

{"sheet":"modServiceModule","index":44,"n_rows":0,"n_cols":0,"rows_kept":0,"cut":false,"hidden":true,"merged":[]}

{"sheet":"modfrmCheckUpdates","index":45,"n_rows":0,"n_cols":0,"rows_kept":0,"cut":false,"hidden":true,"merged":[]}

{"sheet":"REESTR_DS","index":46,"n_rows":3,"n_cols":2,"rows_kept":3,"cut":false,"hidden":true,"merged":[]}
[]
[]
[null,"Городецкий муниципальный район, Зиняковский сельсовет (22628416);"]

{"sheet":"REESTR_CHS","index":47,"n_rows":0,"n_cols":0,"rows_kept":0,"cut":false,"hidden":true,"merged":[]}

{"sheet":"REESTR_LINK","index":48,"n_rows":3,"n_cols":3,"rows_kept":3,"cut":false,"hidden":true,"merged":[]}
["ID","LINK_NAME","REGION"]
[4189678,"https://portal.eias.ru/Portal/DownloadPage.aspx?type=12&guid=????????-????-????-????-????????????","ALL"]
[4190415,"https://eias.fstrf.ru/disclo/get_file?p_guid=????????-????-????-????-????????????","ALL"]